Cogmind - Beta 16.1 @@@ ROGUE MODE // 2026.02.21 @ 23:12:00 Player: Dwarfinator Result: Heading to fleet! Performance ------------- Evolutions (9) 4500 Regions Visited (24) 4800 Robots Destroyed (336) 1680 Value Destroyed (18224) 18224 Prototype IDs (389) 7780 Alien Tech Used (16) 3200 Bonus (62664) 62664 TOTAL SCORE: 102848 Bonus ------- Triggered Max Security 2000 High Alert Combat Kills 2187 Follower Combat Kills 2821 Entered DSFs 500 Network Hubs Disabled 400 Delivered SUBCON Basin 2000 Registered with UFD 300 Met Optimus in HQ 500 Met Zhirov 300 Built Enhanced Grunts 300 A7 Reached Mainframe 300 Met R17 at Cetus 500 Read Decrypted Archives 300 Used Core Reset Matrix 3000 Met R17 at Research 2000 Scanned by Researcher 500 Pursued by Intercept 500 Integrated Exoskeleton 5000 Destroyed MAIN.C Guards 500 Met MAIN.C 5000 Destroyed MAIN.C Shell 5000 Destroyed MAIN.C 10000 Met Architect 300 Destroyed A8 300 Destroyed A6 400 Destroyed A5 500 Destroyed A2 1000 Destroyed Architect 15000 Win 3000 Friendly Fire -1744 Cogmind --------- Core Integrity 1417/2100 Matter 275/300 Energy 336/340 System Corruption 0% +Membrane Temperature Cool (0) +ITN Movement Walking (30) Location To Fleet Rendezvous Parts ------- > --- POWER (1) -------- Zero-point Reactor > --- PROPULSION (3) --- Sigix Exoskeleton > --- UTILITY (6) ------ Experimental Targeting Computer Experimental Core Analyzer Advanced Weapon Cycler Advanced Reaction Control System Experimental Phase Shifter AEGIS Remote Shield > --- WEAPON (3) ------- Sigix Sheargun Sigix Sheargun LU-1G1's Laser Shovel > --- INVENTORY (9) ---- Experimental Energy Well (600) Experimental Energy Well (600) Experimental Energy Well (600) Sigix Sheargun Core Cannon Perforator Peak State ------------ > --- POWER ------------ Micro Antimatter Reactor > --- PROPULSION ------- Sigix Exoskeleton > --- UTILITY ---------- Large Storage Unit Experimental Core Analyzer Advanced Weapon Cycler Advanced Reaction Control System Experimental Phase Shifter Experimental Force Field > --- WEAPON ----------- Sigix Sheargun Core Cannon > --- INVENTORY -------- Medium Storage Unit Energy Well Improved Energy Well Experimental Targeting Computer Experimental EM Shield Transdimensional Reconstructor Transdimensional Reconstructor Transdimensional Reconstructor Core Regenerator Integrity Redistributor Sigix Sheargun Sigix Sheargun Sigix Sheargun LU-1G1's Laser Shovel Sigix Broadsword [Rating: 271] Favorites ----------- Power Subdweller Power Source Engine Subdweller Power Source Power Core Neutrino Core Reactor Antimatter Reactor Propulsion Compact Wheel Treads Spiked Treads Leg Heavy Shield Leg Wheel Compact Wheel Utility Huge Storage Unit Device Advanced Heat Sink Storage Huge Storage Unit Processor Experimental Targeting Computer Hackware Authchip [Device] Protection Scrap Shield Weapon Subdweller Beam Cannon Energy Gun Wave Gun Energy Cannon Subdweller Beam Cannon Ballistic Gun Railgun Ballistic Cannon Slug Cannon Launcher Ragnarok Missile Launcher Special Weapon LU-1G1's Laser Shovel Impact Weapon Great Maul Slashing Weapon Makeshift Axe Special Melee Weapon Improved Datajack Build | -11 -10 -10 -7 -7 -5 -5 -5 -5 -5 -4 -4 -4 -4 -4 -4 -4 -3 -3 -3 -2 -2 -1 -1 -1 ------- Run | Yrd Mat Sub Rec Scr Fac Was Fac Upp Upp Fac Was Fac Ext Cet Arc Hub Res Qua Sec Res DSF Acc Com Ac0 Slots Evolved 18 | . . . . . 10 . . . . 2 . . . . . . 2 . . 2 . 2 . . Power 1 | . . . . . 1 . . . . . . . . . . . . . . . . . . . Propulsion 5 | . . . . . 1 . . . . 2 . . . . . . 2 . . . . . . . Utility 8 | . . . . . 5 . . . . . . . . . . . . . . 2 . 1 . . Weapon 4 | . . . . . 3 . . . . . . . . . . . . . . . . 1 . . Parts Attached 313 | 1 8 29 8 13 14 1 27 12 6 20 6 24 32 2 5 15 29 22 21 1 4 2 11 . Power 33 | . 1 5 1 1 2 . 1 2 1 2 1 2 4 . 1 2 1 2 1 . . . 3 . Engine 11 | . 1 5 1 1 . . . 1 1 . . . . . . 1 . . . . . . . . Core 8 | . . . . . 2 . . 1 . . 1 . 4 . . . . . . . . . . . Reactor 14 | . . . . . . . 1 . . 2 . 2 . . 1 1 1 2 1 . . . 3 . Propulsion 59 | 1 1 8 3 2 2 . . 2 . 6 2 3 7 . . 5 10 1 6 . . . . . Treads 11 | . . 1 . . . . . 1 . 1 1 . 6 . . . . 1 . . . . . . Leg 25 | 1 1 2 . . . . . 1 . 1 1 1 1 . . 1 9 . 6 . . . . . Wheel 23 | . . 5 3 2 2 . . . . 4 . 2 . . . 4 1 . . . . . . . Hover . | . . . . . . . . . . . . . . . . . . . . . . . . . Flight . | . . . . . . . . . . . . . . . . . . . . . . . . . Utility 121 | . 2 4 1 4 7 1 13 4 3 8 1 12 10 2 4 7 10 9 10 1 3 1 4 . Device 75 | . 2 2 1 2 4 1 5 4 3 4 1 8 8 . 2 6 8 7 4 . . . 3 . Storage 14 | . . 1 . 1 1 . 3 . . . . . . . . 1 . . 3 . 3 . 1 . Processor 15 | . . . . 1 1 . 1 . . 3 . 1 . . 2 . 2 . 2 1 . 1 . . Hackware 6 | . . . . . . . 3 . . 1 . 1 . . . . . 1 . . . . . . Protection 11 | . . 1 . . 1 . 1 . . . . 2 2 2 . . . 1 1 . . . . . Artifact . | . . . . . . . . . . . . . . . . . . . . . . . . . Weapon 100 | . 4 12 3 6 3 . 13 4 2 4 2 7 11 . . 1 8 10 4 . 1 1 4 . Energy Gun 23 | . 2 . . . . . 1 . . 2 . 4 4 . . . 3 1 3 . 1 1 1 . Energy Cannon 20 | . 2 8 . . . . 2 1 . . 1 1 2 . . . . 2 1 . . . . . Ballistic Gun 23 | . . 1 . . 1 . 8 1 1 1 . . 3 . . 1 2 4 . . . . . . Ballistic Cannon 5 | . . 1 . 1 . . . 1 1 . . . . . . . . . . . . . 1 . Launcher 5 | . . 1 . 1 . . . . . . 1 . . . . . 2 . . . . . . . Special Weapon 10 | . . . 1 4 . . . . . 1 . 1 2 . . . . . . . . . 1 . Impact Weapon 4 | . . . . . . . 2 1 . . . . . . . . . 1 . . . . . . Slashing Weapon 7 | . . 1 1 . 1 . . . . . . 1 . . . . 1 2 . . . . . . Piercing Weapon . | . . . . . . . . . . . . . . . . . . . . . . . . . Special Melee Weapon 3 | . . . 1 . 1 . . . . . . . . . . . . . . . . . 1 . Unidentified Prototypes 40 | . . . . 1 2 . 4 . . 1 1 1 . 1 . 3 7 10 5 . . . 4 . Corrupted Parts 1 | . . . . . . . . . . . . . . . . . . 1 . . . . . . System Corruption 1 | . . . . . . . . . . . . . . . . . . 1 . . . . . . Parts Lost 43 | . . 1 . . 1 1 15 3 2 1 . 8 2 1 3 2 . 1 2 . . . . . Power 6 | . . . . . . . 2 1 1 . . 1 . . . . . 1 . . . . . . Propulsion 7 | . . 1 . . . . . . . 1 . 1 2 1 . . . . 1 . . . . . Utility 13 | . . . . . 1 . 2 2 1 . . 4 . . 2 . . . 1 . . . . . Weapon 17 | . . . . . . 1 11 . . . . 2 . . 1 2 . . . . . . . . Highest Loss Streak 5 | . . 1 . . 1 1 4 2 2 1 . 5 1 1 3 2 . 1 1 . . . . . To Critical Strikes 1 | . . . . . . . . . . . . . 1 . . . . . . . . . . . Average Backups 14 | 3 4 6 9 16 19 18 21 21 23 24 23 22 23 23 22 23 23 23 20 16 16 11 7 7 Power . | . . . . . . . . . . . 1 . . . . 1 1 . . . . . . . Propulsion 1 | 2 3 . 1 2 2 3 2 1 1 2 3 3 2 2 2 2 1 . . . . . . . Utility 6 | . . 1 3 6 7 7 7 11 9 12 12 11 11 11 9 10 10 9 9 6 6 3 2 2 Weapon 3 | 1 1 3 2 3 3 6 4 3 7 4 2 2 4 4 5 4 7 8 4 5 4 3 1 2 Tool/Special . | . . . . . . . . . . . . . . . . . . . . . . . . . Unused Backups 84 | 2 8 15 8 10 . . 5 1 . 2 2 3 2 1 . 2 4 4 10 . . . 3 2 Power 8 | . 1 2 1 . . . . . . . . . . 1 . 1 . . 2 . . . . . Propulsion 6 | 1 4 . . . . . 1 . . . . . . . . . . . . . . . . . Utility 38 | . 1 5 3 8 . . 2 1 . 1 2 2 2 . . 1 4 . 3 . . . 1 2 Weapon 27 | 1 2 8 4 2 . . 2 . . 1 . . . . . . . 4 2 . . . 1 . Tool/Special 5 | . . . . . . . . . . . . 1 . . . . . . 3 . . . 1 . Average Slot Usage (%) 85 | . 89 85 82 88 53 66 77 71 91 93 89 90 88 87 80 91 93 87 78 72 78 82 83 80 Engine 8 | . 13 13 13 14 2 . . 3 3 5 3 . . . . . . . . . . . . . Reactor 2 | . . . . . . . 3 . . 3 5 9 5 . . 4 9 8 4 9 9 7 7 7 Treads 3 | . . 9 . . . . . 3 5 4 1 2 12 13 10 6 . 2 2 . . . . . Leg 5 | . 27 6 . . . . . . . . 1 6 4 1 5 1 22 21 21 9 9 7 7 7 Wheel 13 | . . 11 27 28 12 10 9 5 5 15 15 8 . . . 9 3 . . . . . . . Device 8 | . 20 3 1 . 6 20 9 16 19 12 10 15 21 20 12 14 16 9 15 27 24 23 29 30 Storage 6 | . . 3 10 11 5 5 5 5 5 5 5 5 5 5 6 5 4 4 4 9 9 7 . . Processor 5 | . . . . 7 7 10 14 5 5 7 10 9 5 5 11 15 10 14 9 . 9 13 15 15 Protection 2 | . . 8 . . 1 . . . 2 2 3 3 4 5 5 . . . . . . . . . Energy Gun 4 | . 6 . . . . . . . . 7 . 10 16 18 17 14 11 6 2 9 16 16 20 16 Energy Cannon 7 | . 20 24 9 . . . 1 9 9 2 9 6 . 3 . . . . 1 . . . . . Ballistic Gun 2 | . . . . . . . 14 . 5 10 1 . 6 2 5 4 6 7 5 . . . . . Special Weapon 1 | . . . 1 . . 5 1 . . 2 5 2 . 1 . 1 3 2 1 9 1 4 1 . Slashing Weapon 5 | . . . 13 12 1 . 1 . . . 4 4 . . . 3 . 3 5 . . . . . Special Melee Weapon 3 | . . . 2 13 3 4 . . . . . . . . . . . . . . . . . . Peak Build Rating 271 | 1 11 39 42 36 153 158 122 105 101 107 116 147 143 129 137 131 168 198 233 244 249 271 271 271 Average Rating 76 | . 9 16 31 26 109 119 109 80 98 97 101 120 119 124 122 118 146 178 200 241 245 258 263 266 On Entrance 120 | . . 1 39 24 33 149 99 68 98 92 97 108 132 121 129 118 101 166 197 229 244 249 258 266 Avg Prop Armor Cover (%) 6 | . 24 4 8 5 . . . 9 7 7 14 9 9 3 2 10 11 6 5 . . . . . Naked Turns 8 | . 7 . . . . . . . . . . . . . . . . . 1 . . . . . Heaviest Build 221 | . 13 221 221 209 189 166 151 156 159 149 169 179 173 166 141 158 171 163 182 55 59 60 63 63 Greatest Support 205 | 3 20 26 32 36 52 40 40 30 20 68 68 150 168 168 145 145 185 185 205 60 60 60 60 60 Greatest Overweight (x) 22 | . 1 22 22 13 4 4 5 7 7 7 3 3 2 . . 4 2 1 1 . . . 1 1 Average Overweight (x) 2 | . . 3 4 2 3 2 2 5 6 2 2 1 . . . 1 . . . . . . . . Largest Inventory Capacity 35 | 5 5 35 35 35 25 25 25 25 25 25 25 25 25 25 25 25 25 25 29 19 24 19 14 9 Average Capacity 20 | 5 5 12 27 24 25 25 25 25 25 25 25 25 25 25 25 25 25 25 25 19 19 14 9 9 Most Carried 35 | 5 5 35 35 35 25 24 25 25 25 25 25 25 25 25 25 25 25 25 28 18 19 17 14 9 Average Carried 19 | 3 4 10 25 21 21 22 24 22 24 24 23 24 24 24 23 24 24 24 23 17 18 13 8 8 Final Capacity 35 | 5 5 35 35 25 25 25 25 25 25 25 25 25 25 25 25 25 25 25 19 19 19 14 9 9 Final Carried 35 | 5 5 35 21 25 21 22 24 25 25 25 25 25 25 25 23 25 25 25 19 17 18 14 9 8 Scrap Suit Usage (%) 1 | . . . . . 26 . 9 1 . . . . . . . . . . . . . . . . Parts Cannibalized 8 | . . . . . 1 . 3 4 . . . . . . . . . . . . . . . . Class Distribution -------------------- 29% | Commander-Mutant 15% | Subdweller-Mutant 11% | Scavenger-Tank 9% | Hauler-Mutant 6% | Alien-Sigix 5% | Mutant 3% | Scavenger-Gunner 3% | Scavenger-Skirmisher 3% | Scavenger-Scrapper Dominant Class ---------------- Mutant | -10/Materials Subdweller-Mutant | -10/Subcaves Commander-Mutant | -7/Recycling Commander-Mutant | -7/Scraptown Scavenger-Mutant | -5/Factory Scavenger-Scrapper | -5/Waste Scavenger-Scrapper | -5/Factory Scavenger-Mutant | -5/Upper Caves Scavenger-Tank | -5/Upper Caves Tank | -4/Factory Scavenger-Gunner | -4/Waste Scavenger-Tank | -4/Factory Scavenger-Tank | -4/Extension Scavenger-Tank | -4/Cetus Scavenger-Tank | -4/Archives Scavenger-Assassin | -4/Hub_04(d) Scavenger-Skirmisher | -3/Research Scavenger-Gunner | -3/Quarantine Alien-Gunner | -3/Section 7 Alien-Gunner | -2/Research Alien-Gunner | -2/DSF Alien-Sigix | -1/Access Alien-Sigix | -1/Command Alien-Sigix | -1/Access_0 Resources | -11 -10 -10 -7 -7 -5 -5 -5 -5 -5 -4 -4 -4 -4 -4 -4 -4 -3 -3 -3 -2 -2 -1 -1 -1 ----------- Run | Yrd Mat Sub Rec Scr Fac Was Fac Upp Upp Fac Was Fac Ext Cet Arc Hub Res Qua Sec Res DSF Acc Com Ac0 Matter Collected 15588 | 210 90 704 752 1156 369 . 1278 603 236 417 396 884 1443 149 . 1207 1460 1113 2096 . 70 . 160 795 Remotely 3161 | . . . . . . . . . . . . 220 283 119 . 537 674 292 1036 . . . . . Salvage Created 23567 | . 173 844 2089 199 154 . 2499 572 190 628 68 1942 2440 289 289 1311 948 1005 3355 . 352 . 2289 1931 Parts 1025 | . 14 55 72 5 12 . 76 16 13 37 2 84 76 9 7 33 30 43 204 . 13 . 82 142 Haulers Intercepted 5 | . . . . . . . 1 . . . . 1 1 . . . 1 . 1 . . . . . Recyclers Shooed 9 | . . . 1 . . . 3 . . . . . 3 . . . . . 2 . . . . . Parts Field Recycled . | . . . . . . . . . . . . . . . . . . . . . . . . . Retrieved Matter . | . . . . . . . . . . . . . . . . . . . . . . . . . Parts Self-Destructed 47 | . . 17 . 3 . . . 14 13 . . . . . . . . . . . . . . . Prevented 4 | . . . . . . . . 4 . . . . . . . . . . . . . . . . Parts Restored . | . . . . . . . . . . . . . . . . . . . . . . . . . Kills | -11 -10 -10 -7 -7 -5 -5 -5 -5 -5 -4 -4 -4 -4 -4 -4 -4 -3 -3 -3 -2 -2 -1 -1 -1 ------- Run | Yrd Mat Sub Rec Scr Fac Was Fac Upp Upp Fac Was Fac Ext Cet Arc Hub Res Qua Sec Res DSF Acc Com Ac0 Combat Hostiles Destroyed 240 | . 6 19 2 1 1 . 24 7 6 7 . 22 23 3 6 9 11 11 42 . 4 . 15 21 Melee 10 | . . . 1 . . . 1 . . . . . . . . . . . 8 . . . . . Guns 139 | . 3 . . . . . 20 . 4 5 . 5 20 . 6 7 10 9 25 . 4 . 15 6 Cannons 76 | . 3 18 1 . . . 2 7 2 2 . 16 1 1 . . . 1 7 . . . . 15 AOE 3 | . . . . 1 1 . . . . . . . . . . . 1 . . . . . . . Classes Destroyed 31 | . 4 5 3 1 2 . 2 1 1 1 . 1 1 . . 1 . 1 4 . 3 . . . Worker 17 | . 1 . . . 1 . 4 . . 4 . 4 . . . . . . 1 . . . 2 . Builder 11 | . . . . . . . 1 . . 3 . 4 1 . . 1 . . 1 . . . . . Tunneler 9 | . 1 . 3 . 1 . 1 . . 3 . . . . . . . . . . . . . . Hauler 5 | . . . . . . . 1 . . . . 1 1 . . . 1 . 1 . . . . . Recycler 33 | . . . 12 2 . . 8 . . . . 3 3 . . 4 . . 1 . . . . . Mechanic 1 | . . . . . . . . . . 1 . . . . . . . . . . . . . . Operator 3 | . . . . . . . . . . . . . 1 . . . 1 . . . . . 1 . Turret 2 | . . 2 . . . . . . . . . . . . . . . . . . . . . . Watcher 13 | . 2 . . . . . . . . . . 2 . 2 . 4 . 2 . . . . 1 . Swarmer 48 | . 6 5 . . . . 11 . 4 1 . 9 4 . . . 1 4 3 . . . . . Cutter 2 | . . . . . . . . . . . . . . . . . . . . . 2 . . . Grunt 45 | . . . . . 1 . 5 6 . . . . 5 . 5 3 7 1 8 . . . 4 . Brawler 1 | . . . . . . . . . . . . . . . . . . . . . 1 . . . Duelist 2 | . . . . . . . . . . . . . . . . 1 . . . . . . 1 . Protector 1 | . . . 1 . . . . . . . . . . . . . . . . . . . . . Researcher 1 | . . . . . . . . . . . . . . . . . . . 1 . . . . . Sentry 33 | . . 1 . . . . 6 . . 1 . 6 10 . 1 1 1 . 4 . . . 2 . Specialist 2 | . . . . . . . . . . . . . . . . . . . 2 . . . . . Hunter 16 | . . . . . . . . . 2 . . 2 3 . . 2 . . 4 . 1 . 2 . Programmer 34 | . . . 1 . . . 2 1 . 5 . 4 . . . 2 1 5 12 . . . 1 . Q-Series 1 | . . . . . . . . . . . . . . . . . . . 1 . . . . . Behemoth 3 | . . . . . . . . . . . . 1 1 . . . 1 . . . . . . . Cetus Guard 3 | . . . . . . . . . . . . . . 3 . . . . . . . . . . S7 Guard 1 | . . . . . . . . . . . . . . . . . . . 1 . . . . . M Guard 1 | . . . . . . . . . . . . . . . . . . . . . . . 1 . Enhanced Grunt 11 | . . . . . . . . . . . . . . . . . . . . . . . . 11 Enhanced Sentry 1 | . . . . . . . . . . . . . . . . . . . . . . . . 1 Enhanced Hunter 4 | . . . . . . . . . . . . . . . . . . . . . . . . 4 Tracker 3 | . . . . . . . . . . . . . . . . . . . 3 . . . . . Combat Programmer 4 | . . . . . . . . . . . . . . . . . . . 2 . . . 2 . Executioner 2 | . . . . . . . . . . . . . . . . . . . 2 . . . . . Fortress 1 | . . . . . . . . . . . . . . . . . . 1 . . . . . . Artisan 1 | . . 1 . . . . . . . . . . . . . . . . . . . . . . Cobbler 1 | . . 1 . . . . . . . . . . . . . . . . . . . . . . Subdweller 13 | . . 13 . . . . . . . . . . . . . . . . . . . . . . Guru 1 | . . . . 1 . . . . . . . . . . . . . . . . . . . . Scrapoid 1 | . . . . . 1 . . . . . . . . . . . . . . . . . . . Decomposer 3 | . . . . . . . . 3 . . . . . . . . . . . . . . . . Samaritan 2 | . . . . . . . . 2 . . . . . . . . . . . . . . . . Assembled 1 | . . . . . . . . . . . . . . . . . . . . . 1 . . . Best Kill Streak 10 | . 4 3 4 1 2 . 9 4 4 7 . 6 9 2 5 4 3 5 7 . 2 . 10 5 Combat Bots Only 7 | . 3 3 1 1 1 . 5 4 4 4 . 6 7 2 5 3 3 4 7 . 2 . 7 5 Max Kills in Single Turn 3 | . 1 2 1 1 1 . 3 1 1 2 . 3 3 1 2 1 1 2 1 . 2 . 2 2 Gunslinging 1 | . . . . . . . 1 . . . . . 1 . 1 . . 1 . . . . . . Exploded 1 | . . . . 1 1 . . . . . . . . . . . 1 . . . . . . . Melee 1 | . . . 1 . . . 1 . . . . . . . . . . . 1 . . . . . Uniques/NPCs Destroyed 7 | . . . . . . . . . . . . . . . . . . . . . . . 2 5 MAIN.C Shell (-1/Command) MAIN.C (-1/Command) A8 (-1/Access_0) A6 (-1/Access_0) A5 (-1/Access_0) A2 (-1/Access_0) Architect (-1/Access_0) Combat | -11 -10 -10 -7 -7 -5 -5 -5 -5 -5 -4 -4 -4 -4 -4 -4 -4 -3 -3 -3 -2 -2 -1 -1 -1 -------- Run | Yrd Mat Sub Rec Scr Fac Was Fac Upp Upp Fac Was Fac Ext Cet Arc Hub Res Qua Sec Res DSF Acc Com Ac0 Hostile Shots Fired 1940 | . 28 61 2 6 31 . 288 34 48 34 . 125 104 36 6 66 42 38 448 . 40 . 168 335 Missed 737 | . 9 20 . 3 7 . 98 7 8 9 . 29 26 9 2 11 13 10 118 . 24 . 110 224 Intercepted 1 | . . . . . . . . . . . . . . . . . . . . . . . 1 . Deflected 9 | . . . . . . . . . . . . . . . . . . 1 8 . . . . . Hits 1203 | . 19 41 2 3 24 . 190 27 40 25 . 96 78 27 4 55 29 28 330 . 16 . 58 111 Melee 5 | . . . . . . . . . . . . . . . . 2 . . 1 . 1 . . 1 Projectile 1198 | . 19 41 2 3 24 . 190 27 40 25 . 96 78 27 4 53 29 28 329 . 15 . 58 110 AOE 22 | . . 6 . . 10 . 2 . . . . . . . . . . . . . 2 . 2 . Critical Strikes 64 | . . . . 1 2 . 5 2 . . . 5 9 8 1 6 . 1 13 . 2 . 3 6 Part Disruptions 2 | . . . . . . . . . . . . . . . . . . . 2 . . . . . Damage Taken 16534 | . 191 872 18 64 491 . 3608 550 515 411 . 1278 1271 459 795 624 349 413 2723 . 179 . 825 898 Core 1990 | . 18 80 . 9 60 . 484 100 75 38 . 89 120 . 48 75 25 37 131 . 51 . 262 288 Absorbed by Shields 7164 | . . . 16 33 332 . . . 162 86 . 541 617 294 32 458 359 220 2477 . 189 . 579 769 Reduced by Siege Mode 223 | . . . . . . . . . . . . 79 8 49 . 41 2 . 44 . . . . . Ignored by Resistances 6161 | . . . . . . . 30 . . . . . . . . 110 . . 2488 . 383 . 1430 1720 Regen/Repaired (Parts) 4539 | . . . . . 93 . 30 22 . 281 . 676 . . . . 1054 142 2065 . . 176 . . Core Remaining (%) 68 | 100 . . . 57 . . . . 28 . . . . . . 67 . . 64 . 97 . . 67 Volleys Fired 912 | . 24 56 1 9 10 3 64 26 17 36 11 66 97 21 10 45 54 44 161 . 15 . 63 79 Largest 5 | . 2 2 1 1 1 1 5 2 4 4 2 5 5 4 5 4 5 5 3 . 2 . 3 3 Hottest 497 | . 136 160 80 40 40 40 157 240 326 273 240 480 497 315 366 278 366 329 300 . 200 . 400 300 Shots Fired 2141 | . 48 102 2 9 9 3 202 39 32 76 13 171 270 35 36 153 162 98 277 . 30 . 181 193 Gun 1598 | . 16 1 . . 6 . 184 . 11 48 . 70 211 16 36 153 159 91 219 . 30 . 177 170 Cannon 467 | . 32 97 2 1 . 3 17 39 21 26 4 100 19 16 . . . 7 57 . . . 3 23 Launcher 10 | . . 4 . 2 3 . . . . . . . . . . . 1 . . . . . . . Special 66 | . . . . 6 . . 1 . . 2 9 1 40 3 . . 2 . 1 . . . 1 . Kinetic 697 | . . 27 . 3 9 3 178 . 16 30 . . 62 1 9 47 64 50 181 . . . 2 15 Thermal 910 | . 48 75 2 . . . 24 39 16 46 4 145 164 3 27 106 96 48 58 . . . 1 8 Explosive 1 | . . . . . . . . . . . . . . . . . 1 . . . . . . . Electromagnetic 77 | . . . . . . . . . . . . 25 4 28 . . . . 20 . . . . . Slashing 395 | . . . . . . . . . . . . . . . . . . . 18 . 30 . 177 170 Robot Hit Streak 37 | . 5 12 1 7 1 . 26 9 4 8 4 34 37 12 20 21 21 18 15 . 4 . 15 14 Robot Miss Streak 6 | . 4 2 . 1 3 . 4 2 2 2 1 3 2 3 2 4 2 5 2 . 3 . 4 6 Penetration Max 1 | . . . . . . . 1 . 1 1 . . 1 . 1 1 . 1 1 . 1 . 1 1 Secondary Targets 29 | . . . . . . . 5 . . . . . 8 . 3 1 . 2 7 . 1 . 2 . Max Gunslinging Chain 2 | . . . . . . . 1 . . . . . 2 . 2 1 . 1 1 . 1 . 1 . Shots Hit Robots 1530 | . 23 75 69 12 6 . 159 25 18 43 11 108 222 25 28 105 98 45 209 . 15 . 101 133 Core Hits 634 | . 10 23 26 4 8 . 64 11 8 21 2 47 78 12 12 34 34 24 89 . 8 . 58 61 Critical Kills 55 | . . 2 . . . . 6 1 . 1 . 3 . . 1 . 1 1 26 . . . . 13 Critical Parts Destroyed 73 | . . . . . . . 11 . . 2 . 2 6 . 1 . 2 2 34 . . . . 13 Critical Strikes 173 | . . 3 3 . . . 23 1 . 3 . 9 15 . 3 2 10 5 63 . 1 . 1 31 Burn 20 | . . . . . . . . . . . . . 8 . 1 2 7 2 . . . . . . Meltdown 5 | . . 1 . . . . 1 1 . . . 1 . . . . . . 1 . . . . . Destroy 126 | . . 2 . . . . 12 . . 2 . 4 6 . 2 . 3 3 62 . . . . 30 Corrupt 1 | . . . . . . . . . . . . 1 . . . . . . . . . . . . Smash 7 | . . . . . . . 6 . . 1 . . . . . . . . . . . . . . Sever 14 | . . . 3 . . . 4 . . . . 3 1 . . . . . . . 1 . 1 1 Melee Attacks 267 | . . 26 82 9 3 . 40 . . 13 2 22 11 . . 15 . 5 36 . . . 3 . Kinetic 1 | . . . . . . . . . . . . . . . . . . 1 . . . . . . Impact 26 | . . . . . . . 19 . . 7 . . . . . . . . . . . . . . Slashing 220 | . . 26 69 7 3 . 21 . . 4 2 22 11 . . 15 . 4 36 . . . . . Piercing . | . . . . . . . . . . . . . . . . . . . . . . . . . Sneak Attacks 87 | . . 3 34 4 3 . 15 . . 7 . 6 4 . . 5 . . 3 . . . 3 . Combat Hostiles . | . . . . . . . . . . . . . . . . . . . . . . . . . Follow-up Attacks . | . . . . . . . . . . . . . . . . . . . . . . . . . Damage Inflicted 62651 | . 389 2957 3806 368 868 . 4685 1113 629 1649 274 4611 5766 1037 794 3019 2440 1274 7851 . 832 . 9004 9285 Guns 33436 | . 106 . . . 32 . 2393 . 170 814 . 1135 4216 259 794 2462 2347 982 2054 . 832 . 8604 6236 Cannons 15860 | . 283 1752 37 . . . 334 1113 459 391 126 2653 714 355 . . . 292 3902 . . . 400 3049 Explosions 1692 | . . 235 . 249 578 . . . . . . 114 . 423 . . 93 . . . . . . . Melee 11627 | . . 970 3769 119 258 . 1953 . . 444 148 709 805 . . 557 . . 1895 . . . . . Ramming 31 | . . . . . . . . . . . . . 31 . . . . . . . . . . . Kinetic 9329 | . . 712 . 249 610 . 2255 . 248 498 . . 1221 29 257 790 773 343 1195 . . . . 149 Thermal 23851 | . 389 1275 37 . . . 477 1113 381 707 126 3337 3670 423 537 1672 1574 931 3902 . . . 400 2900 Explosive 207 | . . . . . . . . . . . . 114 . . . . 93 . . . . . . . Electromagnetic 1213 | . . . . . . . . . . . . 451 39 585 . . . . 138 . . . . . Impact 1573 | . . . . . . . 1291 . . 282 . . . . . . . . . . . . . . Slashing 26447 | . . 970 3769 119 258 . 662 . . 162 148 709 805 . . 557 . . 2616 . 832 . 8604 6236 Piercing . | . . . . . . . . . . . . . . . . . . . . . . . . . Highest Corruption 23 | . . . 2 . . 19 23 18 14 2 . 6 9 9 9 14 . 6 . . . . . . Average Corruption 7 | . . . 1 . . 13 17 16 14 1 . 5 7 9 9 9 . 3 . . . . . . Corruption Purged 18 | . . . . . . . 10 4 . 4 . . . . . . . . . . . . . . Corruption Blocked . | . . . . . . . . . . . . . . . . . . . . . . . . . Effects 321 | . . . 36 . . 6 73 31 11 6 . 25 58 14 10 39 . 12 . . . . . . Message Errors 73 | . . . 10 . . . 9 10 2 2 . 6 14 4 5 9 . 2 . . . . . . Matter Fused 72 | . . . 13 . . 2 12 8 2 2 . 3 13 2 2 10 . 3 . . . . . . Heat Flow Errors 38 | . . . 7 . . 1 7 2 2 . . 4 6 . . 5 . 4 . . . . . . Energy Discharges 33 | . . . 3 . . 1 9 4 . . . 3 6 3 . 3 . 1 . . . . . . Parts Rejected 5 | . . . . . . . 2 . 1 . . . 1 1 . . . . . . . . . . Parts Fused 3 | . . . . . . . 2 . . . . 1 . . . . . . . . . . . . Data Loss (minor) 38 | . . . 2 . . 1 7 3 2 1 . 2 9 3 1 6 . 1 . . . . . . Data Loss (major) 9 | . . . . . . . 2 2 . . . 2 3 . . . . . . . . . . . Misfires 19 | . . . 1 . . . 8 . . 1 . 1 2 . . 5 . 1 . . . . . . Alerts 7 | . . . . . . . 3 1 . . . 1 . 1 1 . . . . . . . . . Misdirections 7 | . . . . . . 1 6 . . . . . . . . . . . . . . . . . Weapon Failures 17 | . . . . . . . 6 1 2 . . 2 4 . 1 1 . . . . . . . . Overload Shots . | . . . . . . . . . . . . . . . . . . . . . . . . . Overflow Damage 4307 | . 11 78 848 . 9 . 793 116 . 234 7 157 142 . . 228 . . 1469 . . . . 215 Projectiles 1625 | . 11 48 . . . . 61 116 . 22 . 71 . . . . . . 1081 . . . . 215 Explosions 27 | . . 18 . . 9 . . . . . . . . . . . . . . . . . . . Melee 2655 | . . 12 848 . . . 732 . . 212 7 86 142 . . 228 . . 388 . . . . . Knockbacks 12 | . . 2 . . . . 2 . 2 . . . . . . . . . . . . . . 6 Impact 2 | . . . . . . . 2 . . . . . . . . . . . . . . . . . Kinetic 10 | . . 2 . . . . . . 2 . . . . . . . . . . . . . . 6 Secondary . | . . . . . . . . . . . . . . . . . . . . . . . . . Self-Inflicted Damage . | . . . . . . . . . . . . . . . . . . . . . . . . . Shots . | . . . . . . . . . . . . . . . . . . . . . . . . . Rammed 3 | . . . . . . . . . . . . . 3 . . . . . . . . . . . Targets Rammed 3 | . . . . . . . . . . . . . 3 . . . . . . . . . . . Kicked . | . . . . . . . . . . . . . . . . . . . . . . . . . Crushed . | . . . . . . . . . . . . . . . . . . . . . . . . . Highest Temperature 511 | . 189 165 251 1 23 141 511 492 255 345 . 336 287 . 180 342 375 356 259 . . . 193 173 Average Temperature 103 | . 79 39 103 1 11 73 82 125 154 120 . 106 104 . 66 136 102 87 106 . . . 108 132 Received Heat Transfer 2108 | . . 144 . 28 57 . 591 241 . 30 . 72 192 . 10 103 53 18 237 . 8 . 247 77 Thermoelectric Energy+ 906 | . . . . . . . . . . . . . . . . . . . 387 . . . 455 64 Effects 16 | . . . . . . . 5 3 . . . 1 1 . . 4 1 . 1 . . . . . Shutdowns 3 | . . . . . . . 2 . . . . 1 . . . . . . . . . . . . Energy Bleed 6 | . . . . . . . 1 1 . . . . 1 . . 1 1 . 1 . . . . . Interference 4 | . . . . . . . . 2 . . . . . . . 2 . . . . . . . . Matter Decay 2 | . . . . . . . 2 . . . . . . . . . . . . . . . . . Damage (minor) 1 | . . . . . . . . . . . . . . . . 1 . . . . . . . . Siege Activations 19 | . . . . . . . . . . . . 7 2 2 1 3 1 . 3 . . . . . Total Turns 320 | . . . . . . . . . . . . 100 13 32 11 61 13 . 90 . . . . . Longest Duration 74 | . . . . . . . . . . . . 59 7 18 11 30 13 . 74 . . . . . Martial Activations . | . . . . . . . . . . . . . . . . . . . . . . . . . Shielding Activations 13 | . . . . . . . . . . . . 1 4 . . . 2 1 5 . . . . . Total Turns 501 | . . . . . . . . . . . . 220 58 . . . 30 18 175 . . . . . Longest Duration 220 | . . . . . . . . . . . . 220 31 . . . 25 18 52 . . . . . Robots Disrupted . | . . . . . . . . . . . . . . . . . . . . . . . . . Combat Hostiles . | . . . . . . . . . . . . . . . . . . . . . . . . . Robots Corrupted 6 | . . . . . . . 3 . . . . . . 2 . . . . 1 . . . . . Combat Hostiles 3 | . . . . . . . . . . . . . . 2 . . . . 1 . . . . . Parts Fried 27 | . . . . . . . 14 . . 9 . 1 . 3 . . . . . . . . . . Impact Corruptions 20 | . . . . . . . 16 . . 4 . . . . . . . . . . . . . . Robots Melted 9 | . . 1 . . . . 1 1 . . . 1 2 . . 2 . . 1 . . . . . Combat Hostiles 8 | . . 1 . . . . 1 . . . . 1 2 . . 2 . . 1 . . . . . Parts Melted 55 | . 2 1 . . . . 2 1 2 2 . 8 10 . 2 10 10 2 3 . . . . . Heat Transferred 22566 | . 815 1776 37 . . . 609 962 333 703 111 3108 5420 250 777 2627 3040 1184 814 . . . . . Parts Sabotaged . | . . . . . . . . . . . . . . . . . . . . . . . . . Parts Stolen . | . . . . . . . . . . . . . . . . . . . . . . . . . Parts Stripped 18 | . . . . . . . . . . . . . . . . . . 18 . . . . . . Power Chain Reactions 2 | . . . . . . . . . . . . . . 2 . . . . . . . . . . Alert | -11 -10 -10 -7 -7 -5 -5 -5 -5 -5 -4 -4 -4 -4 -4 -4 -4 -3 -3 -3 -2 -2 -1 -1 -1 ------- Run | Yrd Mat Sub Rec Scr Fac Was Fac Upp Upp Fac Was Fac Ext Cet Arc Hub Res Qua Sec Res DSF Acc Com Ac0 Maximum Alert Level 5 | . . . . . . . 3 . . 1 . 2 2 2 3 1 1 . 5 4 3 5 5 . Low Security (%) 58 | 100 100 . 100 . 100 100 20 . . 40 100 28 66 . 13 4 54 100 49 . . . . . Level 1 20 | . . . . . . . 55 . . 59 . 23 29 9 9 95 45 . 14 . . . . . Level 2 9 | . . . . . . . 13 . . . . 47 3 90 32 . . . 21 . . 50 . . Level 3 3 | . . . . . . . 10 . . . . . . . 44 . . . 10 . 100 . 2 . Level 4 7 | . . . . . . . . . . . . . . . . . . . . 100 . . 94 . Level 5 . | . . . . . . . . . . . . . . . . . . . . . . . 2 . High Security . | . . . . . . . . . . . . . . . . . . . . . . . . . Max Security . | . . . . . . . . . . . . . . . . . . . 4 . . 50 . . Peak Influence 1700 | . 77 . 143 . 74 19 891 . . 343 115 543 636 556 758 308 284 168 1700 1100 976 1629 1315 . Initial 1100 | . . . 98 . . 15 . . . 230 115 . 233 352 198 233 120 101 38 1100 832 573 1100 . Average 213 | . 22 . 49 . 20 3 323 . . 218 21 313 189 464 579 244 202 112 335 1100 883 1031 1216 . Influence Increases 12258 | . 194 265 579 78 214 28 1721 230 140 519 2 910 1297 323 700 463 578 524 1565 10 264 137 880 637 Destroy 0b10 Robot/C 4980 | . 120 160 80 40 120 . 540 140 120 140 . 440 700 160 340 180 220 220 860 . 120 40 240 . Destroy 0b10 Robot/NC 615 | . 20 . 180 . 15 . 85 10 . 55 . 70 55 10 5 45 10 10 20 . . 5 20 . Destroy Leader 864 | . 24 . . . 10 . 122 20 20 40 . 116 94 . . 48 52 44 212 . 30 . 32 . Allied During Kill 943 | . . . 126 38 29 . 7 . . . . . 308 65 298 . . . . . 33 1 38 . Trap Triggered on 0b10 10 | . . . . . . . . . . . . . . . . 10 . . . . . . . . Successful Hack 427 | . . . 8 . . . 72 . . 26 . 54 9 . . 26 103 80 21 . . 24 4 . Select Force Hacks 150 | . . . 150 . . . . . . . . . . . . . . . . . . . . . Disable Machine 1020 | . . . 30 . . . 60 . . 60 . 120 90 30 15 90 30 105 210 . . 15 135 30 Destroy Structure 2079 | . . . 5 . 40 28 100 . . 78 2 110 26 58 42 64 118 50 212 10 81 52 396 607 Partial Spotted 15 | . . . . . . . . . . . . . . . . . 15 . . . . . . . Lose Combat Pursuer 1155 | . 30 105 . . . . 735 60 . 120 . . 15 . . . 30 15 30 . . . 15 . Influence Decreases 13792 | . 194 60 656 168 208 72 834 701 190 554 333 433 1144 458 527 901 628 635 711 744 418 753 830 1640 Entered New Map 6072 | . . . 107 128 38 29 . 329 80 136 216 . 244 278 297 435 110 79 31 744 278 383 490 1640 Time Decay 5809 | . 194 60 549 . 52 43 464 342 90 398 117 379 580 170 140 446 498 546 551 . . 30 160 . Search Patrol Dispatched 200 | . . . . . . . 200 . . . . . . . . . . . . . . . . . Lost Part 372 | . . . . . 10 . 150 30 20 10 . 42 20 10 30 20 . 10 20 . . . . . Lost Ally 1230 | . . . . 40 108 . 20 . . 10 . 12 300 . 60 . 20 . . . 140 340 180 . Purge Threat 109 | . . . . . . . . . . . . . . . . . . . 109 . . . . . Squads Dispatched 72 | . 1 . . . . . 10 . . 2 . 6 2 . . 8 10 8 16 . 2 6 1 . Investigation 4 | . . . . . . . 1 . . . . . . . . . 3 . . . . . . . Extermination 17 | . . . . . . . 2 . . 2 . 3 . . . 1 . 4 5 . . . . . Reinforcement 19 | . 1 . . . . . 3 . . . . 2 2 . . 2 4 1 2 . 2 . . . Assault 18 | . . . . . . . 1 . . . . 1 . . . 2 . . 7 . . 6 1 . Garrison 12 | . . . . . . . 3 . . . . . . . . 3 3 3 . . . . . . Intercept 2 | . . . . . . . . . . . . . . . . . . . 2 . . . . . Searches Triggered 2 | . . . . . . . 2 . . . . . . . . . . . . . . . . . Construction Impeded 1 | . . . . . . . . . . . . . 1 . . . . . . . . . . . Haulers Reinforced 3 | . . . . . . . 1 . . . . . . . . . 2 . . . . . . . Active Scanning Responses . | . . . . . . . . . . . . . . . . . . . . . . . . . Cargo Convoy Interrupts . | . . . . . . . . . . . . . . . . . . . . . . . . . Stealth | -11 -10 -10 -7 -7 -5 -5 -5 -5 -5 -4 -4 -4 -4 -4 -4 -4 -3 -3 -3 -2 -2 -1 -1 -1 --------- Run | Yrd Mat Sub Rec Scr Fac Was Fac Upp Upp Fac Was Fac Ext Cet Arc Hub Res Qua Sec Res DSF Acc Com Ac0 Distress Signals 44 | . 1 . . . 1 . 3 . . . . 4 1 2 . 2 8 1 . . . 1 20 . Communications Jammed . | . . . . . . . . . . . . . . . . . . . . . . . . . Distress Signals . | . . . . . . . . . . . . . . . . . . . . . . . . . Times Spotted 457 | . 10 26 5 12 18 3 85 11 6 12 1 31 39 9 10 21 25 14 55 . 11 3 26 24 Peak Tracking Total 11 | . 3 5 3 4 4 3 11 5 4 6 1 7 9 5 9 5 4 5 7 . 6 4 11 4 Tactical Retreats 32 | . 1 3 . . . . 17 2 . 2 . . 1 . . . 2 1 2 . . . 1 . Traps | -11 -10 -10 -7 -7 -5 -5 -5 -5 -5 -4 -4 -4 -4 -4 -4 -4 -3 -3 -3 -2 -2 -1 -1 -1 ------- Run | Yrd Mat Sub Rec Scr Fac Was Fac Upp Upp Fac Was Fac Ext Cet Arc Hub Res Qua Sec Res DSF Acc Com Ac0 Traps Triggered 13 | . 1 . . . 1 . 1 . . 1 . 3 2 . . 2 1 . . . . . 1 . Indirectly . | . . . . . . . . . . . . . . . . . . . . . . . . . Trap Hack Attempts . | . . . . . . . . . . . . . . . . . . . . . . . . . Triggered . | . . . . . . . . . . . . . . . . . . . . . . . . . Disarmed . | . . . . . . . . . . . . . . . . . . . . . . . . . Reprogrammed . | . . . . . . . . . . . . . . . . . . . . . . . . . Reused 2 | . . 1 . . . . . . . . . . . . . 1 . . . . . . . . Traps Extracted . | . . . . . . . . . . . . . . . . . . . . . . . . . Installed 2 | . . 1 . . . . . . . . . . . . . 1 . . . . . . . . Triggered 1 | . . . . . . . . . . . . . . . . 1 . . . . . . . . Most Traps Carried 3 | . . 1 1 3 3 3 3 3 3 3 3 3 3 3 3 3 2 . . . . . . . Objects Rigged 4 | . . . . . . . . . . . . 1 . . . 3 . . . . . . . . Exploded 1 | . . . . . . . . . . . . 1 . . . . . . . . . . . . Machines | -11 -10 -10 -7 -7 -5 -5 -5 -5 -5 -4 -4 -4 -4 -4 -4 -4 -3 -3 -3 -2 -2 -1 -1 -1 ---------- Run | Yrd Mat Sub Rec Scr Fac Was Fac Upp Upp Fac Was Fac Ext Cet Arc Hub Res Qua Sec Res DSF Acc Com Ac0 Machines Disabled 96 | . . 4 2 12 . . 4 . . 4 . 8 7 3 1 6 2 7 18 . . 1 9 8 Max in Single Turn 3 | . . 3 1 1 . . 1 . . 1 . 1 1 1 . 1 1 1 2 . . 1 1 2 Garrison Access 3 | . . . . . . . 1 . . . . 1 . . . 1 . . . . . . . . Network Hub 2 | . . . . . . . . . . . . . . . . 2 . . . . . . . . Machines Repaired . | . . . . . . . . . . . . . . . . . . . . . . . . . Machines Dismantled 2 | . . . . . . . . . . . . . 1 . . 1 . . . . . . . . Machines Sabotaged . | . . . . . . . . . . . . . . . . . . . . . . . . . Overloaded Fab Kills . | . . . . . . . . . . . . . . . . . . . . . . . . . Hacking | -11 -10 -10 -7 -7 -5 -5 -5 -5 -5 -4 -4 -4 -4 -4 -4 -4 -3 -3 -3 -2 -2 -1 -1 -1 --------- Run | Yrd Mat Sub Rec Scr Fac Was Fac Upp Upp Fac Was Fac Ext Cet Arc Hub Res Qua Sec Res DSF Acc Com Ac0 Machines Accessed 87 | . . 4 13 4 . . 10 1 . 4 . 11 7 1 1 4 6 9 7 1 . 1 2 1 Terminals 46 | . . . 6 . . . 4 . . 1 . 5 7 1 . 3 2 6 7 1 . 1 2 . Fabricators 3 | . . . . . . . 2 . . . . 1 . . . . . . . . . . . . Repair Stations 6 | . . . . . . . . . . 2 . 1 . . . . 2 1 . . . . . . Recycling Units 13 | . . . 7 . . . 2 . . . . 3 . . . . 1 . . . . . . . Scanalyzers 5 | . . . . . . . 1 . . 1 . . . . . . 1 2 . . . . . . Garrison Access 3 | . . . . . . . 1 . . . . 1 . . . 1 . . . . . . . . Total Hacks 252 | . . 7 29 13 . . 40 1 . 8 . 23 15 1 25 7 27 31 19 2 . 1 2 1 Successful 143 | . . 7 13 13 . . 28 1 . 5 . 10 2 . 25 2 12 9 12 1 . 1 1 1 Failed 108 | . . . 16 . . . 12 . . 2 . 13 13 1 . 5 15 22 7 1 . . 1 . Catastrophic 32 | . . . 4 . . . 1 . . . . 4 6 . . 1 5 8 2 . . . 1 . Database Lockouts 1 | . . . . . . . . . . 1 . . . . . . . . . . . . . . Manual 105 | . . . 19 . . . 13 . . 4 . 10 12 1 . 7 6 23 9 . . . 1 . Terminals 110 | . . . 11 . . . 11 . . 2 . 7 15 1 . 5 9 25 19 2 . 1 2 . Fabricators 11 | . . . . . . . 7 . . . . 4 . . . . . . . . . . . . Repair Stations 23 | . . . . . . . . . . 3 . 4 . . . . 14 2 . . . . . . Recycling Units 42 | . . . 18 . . . 16 . . . . 7 . . . . 1 . . . . . . . Scanalyzers 14 | . . . . . . . 4 . . 3 . . . . . . 3 4 . . . . . . Garrison Access 5 | . . . . . . . 2 . . . . 1 . . . 2 . . . . . . . . Terminal Hacks 65 | . . 7 . 13 . . 3 1 . 1 . 1 . . 25 . . 2 8 1 . 1 1 1 Record 38 | . . 4 . 7 . . . . . . . . . . 25 . . . 1 . . . . 1 Robot Analysis 5 | . . . . 5 . . . . . . . . . . . . . . . . . . . . Prototype ID Bank 1 | . . . . . . . . . . . . . . . . . . 1 . . . . . . Open Door 5 | . . 1 . . . . . 1 . . . . . . . . . . 2 . . . 1 . Open DSF 1 | . . . . . . . . . . . . . . . . . . . . 1 . . . . Branch Access Points 2 | . . . . . . . 1 . . . . 1 . . . . . . . . . . . . Emergency Access Points 2 | . . . . . . . 1 . . . . . . . . . . . 1 . . . . . Alert Level 1 | . . . . . . . . . . . . . . . . . . . 1 . . . . . Unreport Threat 1 | . . . . . . . . . . . . . . . . . . . 1 . . . . . Locate Traps 1 | . . . . . . . 1 . . . . . . . . . . . . . . . . . Maintenance Status 1 | . . . . . . . . . . . . . . . . . . . . . . 1 . . Security Status 1 | . . . . . . . . . . . . . . . . . . . 1 . . . . . Hauler Manifests 1 | . . . . . . . . . . . . . . . . . . 1 . . . . . . Registered Components 1 | . . . . . . . . . . 1 . . . . . . . . . . . . . . Proto ID Catalog 2 | . . 1 . 1 . . . . . . . . . . . . . . . . . . . . Activate Exoskeleton 1 | . . . . . . . . . . . . . . . . . . . 1 . . . . . Release Object 1 | . . 1 . . . . . . . . . . . . . . . . . . . . . . Fabricator Hacks 6 | . . . . . . . 3 . . . . 3 . . . . . . . . . . . . Network Status 2 | . . . . . . . 1 . . . . 1 . . . . . . . . . . . . Load Schematic 2 | . . . . . . . 1 . . . . 1 . . . . . . . . . . . . Build 2 | . . . . . . . 1 . . . . 1 . . . . . . . . . . . . Repair Station Hacks 9 | . . . . . . . . . . . . 1 . . . . 8 . . . . . . . Scan Component 6 | . . . . . . . . . . . . 1 . . . . 5 . . . . . . . Repair 3 | . . . . . . . . . . . . . . . . . 3 . . . . . . . Recycling Unit Hacks 13 | . . . 3 . . . 10 . . . . . . . . . . . . . . . . . Process 1 | . . . . . . . 1 . . . . . . . . . . . . . . . . . Report Inventory 8 | . . . . . . . 8 . . . . . . . . . . . . . . . . . Retrieve Components 4 | . . . 3 . . . 1 . . . . . . . . . . . . . . . . . Scanalyzer 4 | . . . . . . . 2 . . 2 . . . . . . . . . . . . . . Retrieve Study 4 | . . . . . . . 2 . . 2 . . . . . . . . . . . . . . Garrison Access Hacks 2 | . . . . . . . 1 . . . . 1 . . . . . . . . . . . . Seal Access 2 | . . . . . . . 1 . . . . 1 . . . . . . . . . . . . Unauthorized Hacks 44 | . . . 10 . . . 9 . . 2 . 4 2 . . 2 4 7 4 . . . . . Terminals 28 | . . . 5 . . . 3 . . 1 . 1 2 . . 2 3 7 4 . . . . . Track 3 | . . . . . . . . . . . . . . . . 1 . 1 1 . . . . . Assimilate 2 | . . . . . . . . . . 1 . . . . . . . 1 . . . . . . Botnet 12 | . . . 2 . . . 1 . . . . 1 2 . . 1 2 2 1 . . . . . Disrupt 3 | . . . . . . . 1 . . . . . . . . . . . 2 . . . . . Operators 2 | . . . . . . . . . . . . . . . . . 1 1 . . . . . . Skim 6 | . . . 3 . . . 1 . . . . . . . . . . 2 . . . . . . Fabricators 2 | . . . . . . . 2 . . . . . . . . . . . . . . . . . Haulers 1 | . . . . . . . 1 . . . . . . . . . . . . . . . . . Recompile 1 | . . . . . . . 1 . . . . . . . . . . . . . . . . . Repair Stations 3 | . . . . . . . . . . 1 . 1 . . . . 1 . . . . . . . Mechanics 3 | . . . . . . . . . . 1 . 1 . . . . 1 . . . . . . . Recycling Units 11 | . . . 5 . . . 4 . . . . 2 . . . . . . . . . . . . Monitor 1 | . . . . . . . 1 . . . . . . . . . . . . . . . . . Reject 2 | . . . . . . . 1 . . . . 1 . . . . . . . . . . . . Recyclers 2 | . . . . . . . 1 . . . . 1 . . . . . . . . . . . . Mask 1 | . . . . . . . 1 . . . . . . . . . . . . . . . . . Tunnel 5 | . . . 5 . . . . . . . . . . . . . . . . . . . . . Scanalyzers . | . . . . . . . . . . . . . . . . . . . . . . . . . Garrison Access . | . . . . . . . . . . . . . . . . . . . . . . . . . Data Cores Recovered . | . . . . . . . . . . . . . . . . . . . . . . . . . Used . | . . . . . . . . . . . . . . . . . . . . . . . . . Hacking Detections 67 | . . . 12 . . . 9 . . 3 . 10 7 1 . 4 6 9 4 . . 1 1 . Full Trace Events 3 | . . . 3 . . . . . . . . . . . . . . . . . . . . . Feedback Events 1 | . . . 1 . . . . . . . . . . . . . . . . . . . . . Corruption 1 | . . . 1 . . . . . . . . . . . . . . . . . . . . . Feedback Blocked . | . . . . . . . . . . . . . . . . . . . . . . . . . Robot Schematics Acquired . | . . . . . . . . . . . . . . . . . . . . . . . . . Robots Built . | . . . . . . . . . . . . . . . . . . . . . . . . . Authchips . | . . . . . . . . . . . . . . . . . . . . . . . . . Time . | . . . . . . . . . . . . . . . . . . . . . . . . . Total Robot Build Rating . | . . . . . . . . . . . . . . . . . . . . . . . . . Part Schematics Acquired 39 | . . . . 19 1 3 14 . . . . . . . . . . . 2 . . . . . Parts Built 3 | . . . . . . . 2 . . . . 1 . . . . . . . . . . . . Authchips 1 | . . . . . . . . . . . . 1 . . . . . . . . . . . . Time 232 | . . . . . . . 139 . . . . 93 . . . . . . . . . . . . Total Part Build Rating 25 | . . . . . . . 18 . . . . 7 . . . . . . . . . . . . Part Studies Acquired 4 | . . . . . . . 2 . . 2 . . . . . . . . . . . . . . Parts Repaired 3 | . . . . . . . . . . . . . . . . . 3 . . . . . . . Time 268 | . . . . . . . . . . . . . . . . . 268 . . . . . . . Parts Recycled . | . . . . . . . . . . . . . . . . . . . . . . . . . Recycled Matter . | . . . . . . . . . . . . . . . . . . . . . . . . . Retrieved Matter . | . . . . . . . . . . . . . . . . . . . . . . . . . Retrieved Components 11 | . . . 10 . . . 1 . . . . . . . . . . . . . . . . . Parts Scanalyzed . | . . . . . . . . . . . . . . . . . . . . . . . . . Part Schematics Acquired . | . . . . . . . . . . . . . . . . . . . . . . . . . Parts Damaged . | . . . . . . . . . . . . . . . . . . . . . . . . . Bothacking | -11 -10 -10 -7 -7 -5 -5 -5 -5 -5 -4 -4 -4 -4 -4 -4 -4 -3 -3 -3 -2 -2 -1 -1 -1 ------------ Run | Yrd Mat Sub Rec Scr Fac Was Fac Upp Upp Fac Was Fac Ext Cet Arc Hub Res Qua Sec Res DSF Acc Com Ac0 Used RIF Installer . | . . . . . . . . . . . . . . . . . . . . . . . . . Robots Hacked 14 | . . . . 2 . . . . . 2 1 1 1 2 . . 1 . . . . . 4 . Non-combat 1 | . . . . . . . . . . 1 . . . . . . . . . . . . . . Combat 10 | . . . . 2 . . . . . . . . 1 2 . . 1 . . . . . 4 . Robot Hacks Applied 11 | . . . . 2 . . . . . 1 . . 1 2 . . 1 . . . . . 4 . parse_system 10 | . . . . 2 . . . . . . . . 1 2 . . 1 . . . . . 4 . find_chute 1 | . . . . . . . . . . 1 . . . . . . . . . . . . . . Manual 3 | . . . . . . . . . . 1 1 1 . . . . . . . . . . . . Relay Couplers Released 2 | . . . . . . . . . . . . . . . . 2 . . . . . . . . Machine Destruction 2 | . . . . . . . . . . . . . . . . 2 . . . . . . . . Fabnet Peak Effective % . | . . . . . . . . . . . . . . . . . . . . . . . . . Robots Rewired 34 | . . . 21 . . . . . . . 1 . 12 . . . . . . . . . . . Allies Hacked 2 | . . . 2 . . . . . . . . . . . . . . . . . . . . . Hacks Repelled . | . . . . . . . . . . . . . . . . . . . . . . . . . Allies | -11 -10 -10 -7 -7 -5 -5 -5 -5 -5 -4 -4 -4 -4 -4 -4 -4 -3 -3 -3 -2 -2 -1 -1 -1 -------- Run | Yrd Mat Sub Rec Scr Fac Was Fac Upp Upp Fac Was Fac Ext Cet Arc Hub Res Qua Sec Res DSF Acc Com Ac0 Total Allies 138 | . . . 21 5 . 1 . . . 2 1 1 16 5 . . . . . . 14 21 51 . Largest Group 26 | . . . 21 26 12 1 . . . 2 1 1 9 6 6 . . . . . 5 21 17 . Highest-Rated Group 706 | . . . 473 706 387 31 . . . 49 141 141 381 626 626 . . . . . 68 298 244 . Highest-Rated Ally 159 | . . . 40 47 47 31 . . . 26 141 141 159 159 146 . . . . . 15 15 15 . Total Orders 83 | . . . 7 59 6 . . . . . 2 . 2 . 2 . 5 . . . . . . . STAY 41 | . . . 1 32 4 . . . . . 1 . 1 . 1 . 1 . . . . . . . FOLLOW 24 | . . . 3 16 2 . . . . . 1 . 1 . 1 . . . . . . . . . GUARD 1 | . . . . 1 . . . . . . . . . . . . . . . . . . . . AID 1 | . . . . 1 . . . . . . . . . . . . . . . . . . . . DROP 2 | . . . . 2 . . . . . . . . . . . . . . . . . . . . PICKUP 10 | . . . 3 7 . . . . . . . . . . . . . . . . . . . . EXPLORE 4 | . . . . . . . . . . . . . . . . . 4 . . . . . . . Ally Attacks 579 | . . . 30 139 94 14 9 . . . . 1 106 21 59 . . . . . 23 58 25 . Total Damage 16052 | . . . 673 3209 1776 253 481 . . . . . 3149 1179 3735 . . . . . 429 928 240 . Kills 103 | . . . 4 36 23 . 4 . . . . . 14 5 12 . . . . . 2 3 . . Allies Corrupted 2 | . . . . . . . . . . . . . . . . . . . . . . 2 . . Allies Melted 6 | . . . . 5 . . 1 . . . . . . . . . . . . . . . . . Turrets Deployed 1 | . . . . . . . 1 . . . . . . . . . . . . . . . . . Borg Created 3 | . . . . . 3 . . . . . . . . . . . . . . . . . . . Largest Collective 2 | . . . . . 2 . . . . . . . . . . . . . . . . . . . Intel | -11 -10 -10 -7 -7 -5 -5 -5 -5 -5 -4 -4 -4 -4 -4 -4 -4 -3 -3 -3 -2 -2 -1 -1 -1 ------- Run | Yrd Mat Sub Rec Scr Fac Was Fac Upp Upp Fac Was Fac Ext Cet Arc Hub Res Qua Sec Res DSF Acc Com Ac0 Active Infowar (turns) 12881 | . 572 912 . . 96 204 1404 760 185 949 673 1362 1023 . 180 987 1145 1434 995 . . . . . Optics 914 | . . 912 . . . . . . . . . . . . . . 2 . . . . . . . Sensors 4624 | . . . . . . . . . . . . . . . 180 970 1145 1427 902 . . . . . IFF 3 | . . . . . . . . . . . . . 3 . . . . . . . . . . . Terrain 2959 | . . . . . . . . . . . . . . . 1 627 672 802 857 . . . . . Seismic 5048 | . 572 . . . 95 204 581 163 7 726 400 1280 1020 . . . . . . . . . . . Decoding 4717 | . . . . . 94 204 1404 760 185 949 673 448 . . . . . . . . . . . . Jamming 32 | . . . . . 32 . . . . . . . . . . . . . . . . . . . ECM 2 | . . . . . . . . . . . . . 2 . . . . . . . . . . . Robot Analysis Total 5 | . . . . 5 . . . . . . . . . . . . . . . . . . . . Derelict Logs Recovered 9 | . . 1 . 5 . . . 3 . . . . . . . . . . . . . . . . Drone Launches 3 | . . . . . . . . . . . . . . . . . 3 . . . . . . . Drone Recoveries 1 | . . . . . . . . . . . . . . . . . 1 . . . . . . . Decoded 0b10 Intel 205 | . . . . . 7 6 88 . . 53 23 28 . . . . . . . . . . . . Items 205 | . . . . . 7 6 88 . . 53 23 28 . . . . . . . . . . . . Exploration | -11 -10 -10 -7 -7 -5 -5 -5 -5 -5 -4 -4 -4 -4 -4 -4 -4 -3 -3 -3 -2 -2 -1 -1 -1 ------------- Run | Yrd Mat Sub Rec Scr Fac Was Fac Upp Upp Fac Was Fac Ext Cet Arc Hub Res Qua Sec Res DSF Acc Com Ac0 Turns Passed 40712 | 34 729 9606 4534 9068 181 204 1404 760 185 949 673 1533 1786 350 288 1114 1320 1563 2101 4 93 144 1616 473 Spaces Moved 23664 | 50 521 4621 2103 5498 85 186 974 480 64 570 472 624 790 152 155 536 774 937 1087 5 102 389 1876 613 Core 187 | 50 135 . . . . . . . . . . . . . . . . . 2 . . . . . Treads 1911 | . . 900 . . . . . . 5 . . . 578 152 155 121 . . . . . . . . Legs 7583 | . 386 1086 . . . . . 4 . . . 236 212 . . . 654 937 1083 5 102 389 1876 613 Wheels 13973 | . . 2635 2103 5498 84 185 970 475 59 570 472 387 . . . 415 120 . . . . . . . Hover . | . . . . . . . . . . . . . . . . . . . . . . . . . Flight . | . . . . . . . . . . . . . . . . . . . . . . . . . Fastest Speed 30 | 50 50 120 100 100 110 90 90 120 130 109 111 123 123 160 160 120 118 117 30 30 30 30 30 30 Average Speed 131 | 50 110 187 168 138 133 97 97 131 185 124 127 132 155 160 160 135 122 119 106 30 30 30 30 38 Slowest Speed 730 | 50 120 410 410 295 160 110 120 490 730 160 135 196 280 160 160 240 190 189 189 30 30 30 90 90 Overloaded Moves 26 | . . . . . . . . . . . . . . . . . . . 26 . . . . . Propulsion Burnouts . | . . . . . . . . . . . . . . . . . . . . . . . . . Robots Hopped . | . . . . . . . . . . . . . . . . . . . . . . . . . Potential Cave-ins . | . . . . . . . . . . . . . . . . . . . . . . . . . Cave-ins Triggered . | . . . . . . . . . . . . . . . . . . . . . . . . . Teleports 12 | . . . . . 1 1 4 1 . . . 1 . . . . . . 2 . . . 1 1 Exploration Rate (%) 57 | 3 76 91 99 95 4 99 29 54 6 10 97 20 88 66 99 51 38 90 69 . 75 11 63 39 Regions Visited 24 Branch Regions 13 Pre-discovered Areas 11 | . . 1 5 2 . . . 3 . . . . . . . . . . . . . . . . Known Exits Taken 7 | . . . . . . . 1 . . . . 1 . . 1 1 1 1 . 1 . . . . Unknown Exits Taken 12 | 1 1 1 1 1 . . . 1 1 . . . 1 1 . . . . 1 . . 1 1 . Scrap Searched 23 | . . 11 . 8 . . . 3 1 . . . . . . . . . . . . . . . Spaces Dug 353 | . . 1 4 22 . 15 36 2 . 39 . 22 . . . 30 47 21 32 1 . 15 47 19 Terrain Destroyed 920 | . . 61 4 56 14 17 50 11 16 40 1 60 11 21 2 40 69 22 69 1 29 15 132 179 Melee 44 | . . 1 4 1 . . 13 . . 4 . 9 . . . 6 . 2 4 . . . . . Projectile 442 | . . 9 . 1 . 2 16 11 16 16 1 35 11 . 2 10 3 3 36 . 29 . 95 146 AOE 172 | . . 51 . 34 14 . . . . 15 . 16 . 21 . . 21 . . . . . . . Terrain Rammed . | . . . . . . . . . . . . . . . . . . . . . . . . . Walls Destroyed . | . . . . . . . . . . . . . . . . . . . . . . . . . Machines Disabled . | . . . . . . . . . . . . . . . . . . . . . . . . . Actions | -11 -10 -10 -7 -7 -5 -5 -5 -5 -5 -4 -4 -4 -4 -4 -4 -4 -3 -3 -3 -2 -2 -1 -1 -1 --------- Run | Yrd Mat Sub Rec Scr Fac Was Fac Upp Upp Fac Was Fac Ext Cet Arc Hub Res Qua Sec Res DSF Acc Com Ac0 Total 31435 | 59 630 5475 3034 6959 133 205 1218 566 97 718 537 1156 1170 228 176 787 1041 1297 1747 6 138 415 2858 785 Wait 4569 | . 50 575 641 1312 . 10 41 35 . 22 13 320 125 27 4 85 72 179 193 . 2 9 836 18 Move 23640 | 49 520 4620 2102 5497 85 185 973 479 63 570 471 623 789 151 154 535 773 936 1086 4 101 387 1875 612 Hop . | . . . . . . . . . . . . . . . . . . . . . . . . . Pick Up 440 | 6 10 66 27 72 5 3 31 7 2 11 6 20 19 7 . 13 25 15 48 . 1 7 18 21 Fast Attach 194 | 1 5 15 6 5 4 . 6 6 2 13 5 10 14 2 . 11 19 18 28 . 9 . 10 5 Attach 171 | . 4 10 2 6 10 3 17 7 3 3 6 13 7 3 3 3 6 11 26 2 2 5 8 11 Detach 102 | 1 2 3 2 3 4 . 4 2 2 4 4 8 3 . 1 . 8 9 24 . 3 2 3 10 Swap 481 | . . 24 4 5 3 1 27 3 7 25 6 51 53 8 4 57 48 44 91 . 1 3 13 3 Drop 483 | 2 15 68 30 41 5 . 14 1 1 21 13 24 36 9 . 16 36 36 55 . 4 1 29 26 Fire 912 | . 24 56 1 9 10 3 64 26 17 36 11 66 97 21 10 45 54 44 161 . 15 . 63 79 Melee 263 | . . 26 82 9 3 . 39 . . 13 2 20 11 . . 15 . 5 35 . . . 3 . Ram 2 | . . . . . . . 2 . . . . . . . . . . . . . . . . . Kick . | . . . . . . . . . . . . . . . . . . . . . . . . . Crush 3 | . . . . . . . . . . . . . 3 . . . . . . . . . . . Escape Stasis 6 | . . . . . . . . . . . . . 5 . . . . . . . . 1 . . Rewire 137 | . . . 137 . . . . . . . . . . . . . . . . . . . . . Trap 6 | . . 1 . . . . . . . . . 1 . . . 4 . . . . . . . . Miscellaneous 26 | . . 11 . . 4 . . . . . . . 8 . . 3 . . . . . . . . Route ------- -11/Scrapyard -10/Materials (discovered 3 exits: [*Mat x2] / *Sub) -10/Subcaves (discovered 3 exits: [*Mat x2] / *Rec) -7/Recycling (discovered 2 exits: [*Fac] / *Scr) -7/Scraptown (discovered 2 exits: [*Fac x2]) -5/Factory -5/Waste -5/Factory (discovered 3 exits: *Fac / *Upp x2) -5/Upper Caves -5/Upper Caves -4/Factory (discovered 2 exits: *Upp / Ext) -4/Waste -4/Factory (discovered 4 exits: Upp x2 / *Ext x2) -4/Extension (discovered 2 exits: *Res / *Cet) -4/Cetus (discovered 2 exits: *Res / *Arc) -4/Archives (discovered 3 exits: *Res / *Hub x2) -4/Hub_04(d) (discovered 2 exits: *Res x2) -3/Research -3/Quarantine (discovered 2 exits: *Sec / [*Frg]) -3/Section 7 -2/Research -2/DSF -1/Access -1/Command (discovered 3 exits: [Sur x2] / *Ac0) -1/Access_0 To Fleet Rendezvous History --------- Turn | Location | Event 23 | -11/Scrapyard | Discovered new exit (range 16) 35 | -11/Scrapyard | Entered Materials 142 | -10/Materials | Discovered new exit (range 13) 310 | -10/Materials | Build established: Mutant 606 | -10/Materials | Discovered new exit (range 16) 755 | -10/Materials | Discovered new exit (range 4) 764 | -10/Materials | Entered Subcaves 765 | -10/Subcaves | Approached by a straggling Scientist 1027 | -10/Subcaves | Discovered new exit (range 15) 1775 | -10/Subcaves | Learned location of Zion (-7) 2232 | -10/Subcaves | Build established: Subdweller-Mutant 2591 | -10/Subcaves | Discovered new exit (range 15) 3300 | -10/Subcaves | Disturbed a concealed Subdweller 3426 | -10/Subcaves | Disturbed a concealed Subdweller 5143 | -10/Subcaves | Discovered new exit (range 14) 5521 | -10/Subcaves | A swath of the cavern ceiling suddenly collapsed 5618 | -10/Subcaves | Visited 4L-MR0's lab 5734 | -10/Subcaves | Visited Clippyterm 6704 | -10/Subcaves | Ambushed by Subdweller buried in earth 8341 | -10/Subcaves | Build established: Hauler-Mutant 9457 | -10/Subcaves | Found Prototype Special Melee Weapon 9469 | -10/Subcaves | Found Meta Core 10143 | -10/Subcaves | Found SUBCON Basin 10370 | -10/Subcaves | Entered Recycling 10371 | -7/Recycling | Joined Warlord attack on 0b10 via Recycling 10931 | -7/Recycling | Discovered new exit (range 5) 11495 | -7/Recycling | Scanned before Scraplab entrance 11523 | -7/Recycling | Entered Scraplab 11551 | -7/Recycling | Discovered new exit (range 4) 12149 | -7/Recycling | Build established: Commander-Mutant 14904 | -7/Recycling | Entered Scraptown 14904 | -7/Scraptown | Accompanied by 21 allies 14904 | -7/Scraptown | System corruption cleaned by C-Scrubber 15323 | -7/Scraptown | Visited SPCMW 15427 | -7/Scraptown | Visited Fellowship of the Rings 15459 | -7/Scraptown | Visited Bundlers 16134 | -7/Scraptown | Visited TADAMA 16163 | -7/Scraptown | Visited Science Testing Area 16235 | -7/Scraptown | Scanned Subdweller tech in exchange for log data 16239 | -7/Scraptown | Learned location of 2 exits from Lower Caves 16242 | -7/Scraptown | Learned location of Testing (-2) 16246 | -7/Scraptown | Learned Factory garrison access intel 16275 | -7/Scraptown | Discovered new exit (range 5) 16575 | -7/Scraptown | Visited UFD Registry 16575 | -7/Scraptown | Registered with UFD as "Bolttank" 16627 | -7/Scraptown | Visited LU-1G1's Boring Crew 16705 | -7/Scraptown | Visited Junk Repository 16785 | -7/Scraptown | Visited Scrap Suit Storage 16882 | -7/Scraptown | Delivered Scrap Shield to a Scientist 16979 | -7/Scraptown | Visited Science Guys 17107 | -7/Scraptown | Visited Scrapoid Pod Storage 17167 | -7/Scraptown | Found Scrapoid Pod 17201 | -7/Scraptown | Visited Analyses Database 17233 | -7/Scraptown | Visited Abandonware Association 17254 | -7/Scraptown | Learned abandonware demo "REPAIR.EXE" 17254 | -7/Scraptown | Learned abandonware demo "REBOOT5.EXE" 17313 | -7/Scraptown | Visited Infowarlord's Domain 17351 | -7/Scraptown | Visited Observation Area 17432 | -7/Scraptown | Visited Curators Association 17886 | -7/Scraptown | Scrapoid Pod released 07S05-D (x5) 18663 | -7/Scraptown | Discovered new exit (range 3) 19286 | -7/Scraptown | Attached CPS modules to 07S04-D. 19288 | -7/Scraptown | Attached CPS modules to 07S03-D. 19291 | -7/Scraptown | Attached CPS modules to 07S01-D. 19293 | -7/Scraptown | Attached CPS modules to 07S05-D. 19299 | -7/Scraptown | Attached CPS modules to 07S02-D. 19400 | -7/Scraptown | Attached CPS modules to Scavenger 4b. 19785 | -7/Scraptown | Tech Extrapolator generated special schematic: Machine Rigger 20198 | -7/Scraptown | Tech Extrapolator generated special schematic: Deep Structural Scanner 23277 | -7/Scraptown | Met Optimus 23277 | -7/Scraptown | Accepted into 0bPrime 23677 | -7/Scraptown | Civil war broke out across Scraptown 23684 | -7/Scraptown | Found Prototype Special Weapon 23684 | -7/Scraptown | Identified LU-1G1's Laser Shovel 23755 | -7/Scraptown | Lost 5 allies 23759 | -7/Scraptown | Found Personal Teleporter v0.10 23841 | -7/Scraptown | Found DM-GVY's Chainsaw 23854 | -7/Scraptown | Found Deploy-a-Sentry 23868 | -7/Scraptown | Found Potential Leg 23877 | -7/Scraptown | Lost 8 allies 23946 | -7/Scraptown | Attacked by Scraptown defenders 23972 | -7/Scraptown | Entered Factory 23972 | -5/Factory | Accompanied by 12 allies 23972 | -5/Factory | Evolved 10 slots: Power x1, Propulsion x1, Utility x5, Weapon x3 23973 | -5/Factory | Assembled infested Garrison Access 23973 | -5/Factory | Loaded intel: 4 garrison access locations 24007 | -5/Factory | Identified 1B-0RG's Assimilator 24014 | -5/Factory | Assimilating Angel 4b into Collective. 24018 | -5/Factory | Assimilating Angel 4a into Collective. 24033 | -5/Factory | Attached Meta Core, gained temporary slots: Propulsion, Utility, Weapon 24050 | -5/Factory | Lost 11 allies 24051 | -5/Factory | Found Scrap Suit 24100 | -5/Factory | Found Scrap Suit 24111 | -5/Factory | Assimilating Destroyer 6a into Collective. 24139 | -5/Factory | Lost 4 allies 24143 | -5/Factory | Spotted B-75 Beast 24153 | -5/Factory | Sucked down chute 24153 | -5/Factory | Entered Waste 24154 | -5/Waste | Met a frightened Derelict 24168 | -5/Waste | EMP discharged 24240 | -5/Waste | Spotted C-40 Crusher 24268 | -5/Waste | EMP discharged 24268 | -5/Waste | System corruption reached 10% 24273 | -5/Waste | Spotted C-40 Crusher 24286 | -5/Waste | Spotted C-40 Crusher 24292 | -5/Waste | Spotted C-40 Crusher 24330 | -5/Waste | Spotted C-40 Crusher 24351 | -5/Waste | Discovered new exit (range 8) 24357 | -5/Waste | Entered Factory 24427 | -5/Factory | Build established: Scavenger-Scrapper 24581 | -5/Factory | Lost 3 parts (1p1u1w) 24657 | -5/Factory | Search patrols dispatched 24790 | -5/Factory | Tech Extrapolator generated special schematic: Energy Deflector 24861 | -5/Factory | Fabricated Enh. Nova Cannon? 24957 | -5/Factory | Search patrols dispatched 25129 | -5/Factory | Spotted B-75 Beast 25169 | -5/Factory | Identified exit to Upper Caves 25485 | -5/Factory | Garrison activated, responded to threat 25557 | -5/Factory | First assault squad dispatched 25587 | -5/Factory | Discovered new exit (range 2) 25669 | -5/Factory | DAS Turret deployed 25727 | -5/Factory | Lost 4 parts (1p3w) 25735 | -5/Factory | Core integrity fell below 50% 25761 | -5/Factory | Entered Upper Caves 25768 | -5/Upper Caves | Encountered a Warlord checkpoint 25994 | -5/Upper Caves | Learned location of Warlord (-5) 26074 | -5/Upper Caves | Learned location of Armory (-3) 26210 | -5/Upper Caves | Build established: Scavenger-Mutant 26429 | -5/Upper Caves | Discovered new exit (range 7) 26521 | -5/Upper Caves | Entered another Upper Caves area 26604 | -5/Upper Caves | Discovered new exit (range 9) 26706 | -5/Upper Caves | Entered Factory 26706 | -4/Factory | Evolved 2 slots: Propulsion x2 26707 | -4/Factory | Identified exit to Extension 26830 | -4/Factory | Build established: Scavenger-Tank 27059 | -4/Factory | Found Prototype Processor 27059 | -4/Factory | Identified Exp. Targeting Computer 27066 | -4/Factory | Found Exp. Targeting Computer 27069 | -4/Factory | Found Exp. Targeting Computer 27248 | -4/Factory | Discovered new exit (range 6) 27295 | -4/Factory | P-70 Sage assimilated allied M-28 Smith 27364 | -4/Factory | Identified exit to Upper Caves 27472 | -4/Factory | Central database locked down 27655 | -4/Factory | Sucked down chute 27655 | -4/Factory | Entered Waste 27655 | -4/Waste | The area was eerily silent 27670 | -4/Waste | Build established: Scavenger-Gunner 27735 | -4/Waste | Found Prototype Launcher 27735 | -4/Waste | Identified Ragnarok Missile Launcher 27814 | -4/Waste | Discovered new exit (range 12) 27915 | -4/Waste | A Compactor rumbled back to life 27924 | -4/Waste | Spotted C-40 Crusher 27929 | -4/Waste | Rewired C-40 Crusher 28328 | -4/Waste | Entered Factory 28328 | -4/Factory | Accompanied by 1 ally 28439 | -4/Factory | Build established: Scavenger-Tank 28563 | -4/Factory | Fabricated Machine Rigger (x1) 28632 | -4/Factory | Spotted B-86 Titan 28676 | -4/Factory | Destroyed B-86 Titan 28711 | -4/Factory | Lost 5 parts (1p1n2u1w) 29427 | -4/Factory | Allied Derelicts emerged from ambush trap array 29448 | -4/Factory | Build established: Gunner 29578 | -4/Factory | First assault squad dispatched 29861 | -4/Factory | Entered Extension 30292 | -4/Extension | Build established: Scavenger-Gunner 30457 | -4/Extension | Rescued a captive Derelict 30598 | -4/Extension | Build established: Scavenger-Tank 30880 | -4/Extension | Spotted B-86 Titan 30887 | -4/Extension | Allies destroyed B-86 Titan 30896 | -4/Extension | Spotted B-86 Titan 30945 | -4/Extension | Destroyed B-86 Titan 30972 | -4/Extension | Lost 8 allies 31092 | -4/Extension | Rescued A7 31370 | -4/Extension | Rescued a captive Derelict 31371 | -4/Extension | Rescued a captive Derelict 31436 | -4/Extension | Disrupted transfer network 31525 | -4/Extension | Discovered new exit (range 10) 31527 | -4/Extension | Discovered new exit (range 6) 31590 | -4/Extension | Disrupted transfer network 31624 | -4/Extension | Destroyed 7 combat bots 31634 | -4/Extension | Lost 3 allies 31639 | -4/Extension | Attached CPS modules to A7. 31647 | -4/Extension | Entered Cetus 31647 | -4/Cetus | Accompanied by 1 ally (A7) 31652 | -4/Cetus | Acquired a Cetus Manufacturing Module code from A7 31670 | -4/Cetus | Spotted Cetus Guard 31670 | -4/Cetus | Spotted Cetus Guard 31674 | -4/Cetus | Allies destroyed Cetus Guard 31674 | -4/Cetus | Spotted Cetus Guard 31675 | -4/Cetus | Spotted Cetus Guard 31680 | -4/Cetus | Allies destroyed Cetus Guard 31686 | -4/Cetus | Destroyed Cetus Guard 31688 | -4/Cetus | Destroyed Cetus Guard 31775 | -4/Cetus | Started Cetus Manufacturing Module 31790 | -4/Cetus | Escorted A7 to Cetus Mainframe 31800 | -4/Cetus | Manufactured an Enhanced Grunt 31815 | -4/Cetus | Discovered new exit (range 16) 31825 | -4/Cetus | Manufactured an Enhanced Grunt 31840 | -4/Cetus | Spotted Cetus Guard 31840 | -4/Cetus | Spotted Cetus Guard 31841 | -4/Cetus | Spotted Cetus Guard 31847 | -4/Cetus | Allies destroyed Cetus Guard 31850 | -4/Cetus | Manufactured an Enhanced Grunt 31853 | -4/Cetus | Destroyed Cetus Guard 31855 | -4/Cetus | Allies destroyed Cetus Guard 31875 | -4/Cetus | Manufactured an Enhanced Grunt 31885 | -4/Cetus | Discovered new exit (range 15) 31893 | -4/Cetus | Met Revision 17 31900 | -4/Cetus | Manufactured an Enhanced Grunt 31997 | -4/Cetus | Entered Archives 31997 | -4/Archives | Accompanied by 6 allies (A7) 32002 | -4/Archives | Received a hacking code to weaken MAIN.C 32023 | -4/Archives | Met Zhirov 32029 | -4/Archives | Reinforcements dispatched to Archives 32031 | -4/Archives | Unable to access archive contents 32074 | -4/Archives | Reinforcements dispatched to Archives 32076 | -4/Archives | Zhirov warped through subspace 32076 | -4/Archives | Discovered new exit (range 16) 32086 | -4/Archives | Read partially decrypted archive contents 32094 | -4/Archives | Zhirov detonated Archives 32125 | -4/Archives | Lost 3 parts (2u1w) 32125 | -4/Archives | Lost 5 allies 32129 | -4/Archives | Discovered new exit (range 15) 32229 | -4/Archives | Discovered new exit (range 15) 32282 | -4/Archives | Identified exit to Hub_04(d) 32285 | -4/Archives | Entered Hub_04(d) 32297 | -4/Hub_04(d) | Discovered new exit (range 23) 32610 | -4/Hub_04(d) | Discovered new exit (range 20) 32897 | -4/Hub_04(d) | Garrison activated, responded to threat 33209 | -4/Hub_04(d) | System corruption reached 10% 33350 | -4/Hub_04(d) | Network Hub disabled 33370 | -4/Hub_04(d) | Spotted Lightning 33390 | -4/Hub_04(d) | Network Hub disabled 33398 | -4/Hub_04(d) | Identified exit to Research 33399 | -4/Hub_04(d) | Entered Research 33399 | -3/Research | Evolved 2 slots: Propulsion x2 33400 | -3/Research | Identified exit to Quarantine 33504 | -3/Research | Garrison activated, responded to threat 33599 | -3/Research | Revision forces began assault on 0b10 33630 | -3/Research | Met up with Revision 17++ 33662 | -3/Research | Found Exp. Thermal Shield 33830 | -3/Research | Repaired Hvy. Shield Leg 33883 | -3/Research | Found Unknown Launcher 33883 | -3/Research | Identified Gamma Bomb Array 33944 | -3/Research | Repaired Centrium Medium Armor Plating 34031 | -3/Research | Repaired Broken Imp. Heavy Treads 34099 | -3/Research | Research terminal network offline 34220 | -3/Research | Found Fusion Bomb Launcher 34425 | -3/Research | Build established: Scavenger-Skirmisher 34488 | -3/Research | Spotted Executioner 34498 | -3/Research | Spotted Striker 34498 | -3/Research | Spotted Executioner 34541 | -3/Research | Found Prototype Processor 34541 | -3/Research | Identified Exp. Core Analyzer 34647 | -3/Research | Spotted B-90 Cyclops 34684 | -3/Research | Lost 4 allies 34684 | -3/Research | Destroyed B-90 Cyclops 34719 | -3/Research | Entered Quarantine 34936 | -3/Quarantine | Found Alien Artifact 35059 | -3/Quarantine | Found Alien Energy Cannon 35126 | -3/Quarantine | Watched by a mysterious "MATRIX" hacker. 35359 | -3/Quarantine | Garrison activated, responded to threat 35422 | -3/Quarantine | Found Alien Slashing Weapon 35422 | -3/Quarantine | Identified Sigix Broadsword 35623 | -3/Quarantine | Identified Core Cannon 35633 | -3/Quarantine | Found Alien Impact Weapon 35672 | -3/Quarantine | Discovered new exit (range 8) 35792 | -3/Quarantine | Found Sigix Corpse 35801 | -3/Quarantine | Found Sigix Corpse 35892 | -3/Quarantine | Found Alien Artifact 35989 | -3/Quarantine | Identified Core Reset Matrix 35989 | -3/Quarantine | Identified Subatomic Replicator 35989 | -3/Quarantine | Identified Core Stripper 35989 | -3/Quarantine | Used Core Reset Matrix 35993 | -3/Quarantine | Detected hypermatrix surge 35993 | -3/Quarantine | Sensed 3 artifacts in vicinity 36022 | -3/Quarantine | Spotted Fortress 36028 | -3/Quarantine | Destroyed Fortress 36041 | -3/Quarantine | Found Prototype Device 36041 | -3/Quarantine | Identified Exp. Force Field 36045 | -3/Quarantine | Found Prototype Device 36045 | -3/Quarantine | Identified Exp. EM Shield 36049 | -3/Quarantine | Found Prototype Reactor 36049 | -3/Quarantine | Identified Vortex Chain Reactor 36055 | -3/Quarantine | Found Prototype Device 36055 | -3/Quarantine | Identified Thermal Barrier 36072 | -3/Quarantine | Found Vortex Chain Reactor 36157 | -3/Quarantine | Discovered new exit (range 6) 36157 | -3/Quarantine | Discovered new exit (range 7) 36162 | -3/Quarantine | Identified exit to Section 7 36282 | -3/Quarantine | Entered Section 7 36283 | -3/Section 7 | Detected hypermatrix surge 36283 | -3/Section 7 | Sensed 24 artifacts in vicinity 36318 | -3/Section 7 | Found Integrity Redistributor 36318 | -3/Section 7 | Used Integrity Redistributor, redistributed integrity from core (-199) 36434 | -3/Section 7 | Spotted S7 Guard 36697 | -3/Section 7 | Found Core Membrane 36697 | -3/Section 7 | Installed Core Membrane, gained immunity to corruption 36854 | -3/Section 7 | Spotted S7 Guard 36873 | -3/Section 7 | Found Core Regenerator 36895 | -3/Section 7 | Spotted S7 Guard 36911 | -3/Section 7 | Found Integrated Thermoelectric Network 36911 | -3/Section 7 | Installed Integrated Thermoelectric Network, gained heat-energy exchange potential 36939 | -3/Section 7 | Found Integrity Redistributor 37020 | -3/Section 7 | Scanned by Researcher 37070 | -3/Section 7 | Destroyed S7 Guard 37133 | -3/Section 7 | Found Integrated Mediator 37133 | -3/Section 7 | Installed Integrated Mediator, increased core attachment efficiency 37135 | -3/Section 7 | Destroyed 7 combat bots 37141 | -3/Section 7 | Found Corrupted Prototype Protection 37286 | -3/Section 7 | Identified Hvy. Regenerative Plating 37345 | -3/Section 7 | Found Integrated Dissipator 37345 | -3/Section 7 | Installed Integrated Dissipator, increased core heat dissipation (+20) 37478 | -3/Section 7 | Spotted Executioner 37478 | -3/Section 7 | Spotted Executioner 37492 | -3/Section 7 | Destroyed Executioner 37497 | -3/Section 7 | Destroyed Executioner 37504 | -3/Section 7 | Found Exp. Targeting Computer 37506 | -3/Section 7 | Found Exp. Core Analyzer 37510 | -3/Section 7 | Found Exp. Core Analyzer 37519 | -3/Section 7 | Found Exp. Core Analyzer 37545 | -3/Section 7 | Found Transdimensional Reconstructor 37547 | -3/Section 7 | Found Transdimensional Reconstructor 37551 | -3/Section 7 | Found Transdimensional Reconstructor 37601 | -3/Section 7 | Intercept squad dispatched 37621 | -3/Section 7 | Spotted Tracker 37624 | -3/Section 7 | Destroyed Tracker 37651 | -3/Section 7 | Spotted Combat Programmer 37709 | -3/Section 7 | Found Sigix Sheargun 37712 | -3/Section 7 | Found Sigix Sheargun 37715 | -3/Section 7 | Destroyed Combat Programmer 37782 | -3/Section 7 | First assault squad dispatched 37893 | -3/Section 7 | Found Integrity Redistributor 37895 | -3/Section 7 | Found Integrity Redistributor 37913 | -3/Section 7 | Build established: Alien-Gunner 37930 | -3/Section 7 | Found LRC Armor 37930 | -3/Section 7 | Installed LRC Armor, increased core integrity (+250) 37936 | -3/Section 7 | Found LRC Armor 37936 | -3/Section 7 | Installed LRC Armor, increased core integrity (+250) 37939 | -3/Section 7 | Used Subatomic Replicator to replicate LRC Storage 37940 | -3/Section 7 | Found LRC Storage 37940 | -3/Section 7 | Installed LRC Storage, increased inventory capacity (+2) 37943 | -3/Section 7 | Installed LRC Storage, increased inventory capacity (+2) 38099 | -3/Section 7 | Found Integrity Redistributor 38186 | -3/Section 7 | Intercept squad dispatched 38199 | -3/Section 7 | Spotted Tracker 38200 | -3/Section 7 | Spotted Tracker 38206 | -3/Section 7 | Destroyed Tracker 38215 | -3/Section 7 | Destroyed Tracker 38227 | -3/Section 7 | Spotted Combat Programmer 38232 | -3/Section 7 | Destroyed Combat Programmer 38243 | -3/Section 7 | Spotted Combat Programmer 38259 | -3/Section 7 | Found Prototype Device 38259 | -3/Section 7 | Identified Exp. Phase Shifter 38285 | -3/Section 7 | Released all parts (8) 38286 | -3/Section 7 | Integrated with Sigix Exoskeleton 38379 | -3/Section 7 | Discovered new exit (range 18) 38383 | -3/Section 7 | Entered Research 38383 | -2/Research | Evolved 2 slots: Utility x2 38387 | -2/Research | Identified exit to DSF 38387 | -2/Research | Entered DSF 38392 | -2/DSF | Emitted hypermatrix ping 38397 | -2/DSF | Assembled emerged from beneath the floor 38406 | -2/DSF | Additional patrols routed to DSF 38416 | -2/DSF | Discovered new exit (range 18) 38432 | -2/DSF | Lost 5 allies 38449 | -2/DSF | Assembled emerged from beneath the floor 38480 | -2/DSF | Entered Access 38480 | -1/Access | Evolved 2 slots: Utility x1, Weapon x1 38485 | -1/Access | Emitted hypermatrix ping 38486 | -1/Access | Used Integrity Redistributor, redistributed integrity from core (-33) 38490 | -1/Access | Assembled emerged from beneath the floor 38525 | -1/Access | Assembled emerged from beneath the floor 38538 | -1/Access | Assembled emerged from beneath the floor 38548 | -1/Access | Build established: Alien-Sigix 38560 | -1/Access | Discovered new exit (range 18) 38591 | -1/Access | Lost 3 allies 38624 | -1/Access | Entered Command 38624 | -1/Command | Accompanied by 2 allies 38629 | -1/Command | Emitted hypermatrix ping 38634 | -1/Command | Assembled emerged from beneath the floor 38644 | -1/Command | Lost 3 allies 38737 | -1/Command | Spotted Combat Programmer 38737 | -1/Command | Spotted Combat Programmer 38740 | -1/Command | Destroyed Combat Programmer 38740 | -1/Command | Destroyed Combat Programmer 38786 | -1/Command | Lost 6 allies 38807 | -1/Command | Destroyed 7 combat bots 38816 | -1/Command | Found Prototype Reactor 38816 | -1/Command | Identified Zero-point Reactor 38866 | -1/Command | Destroyed M Guard 38866 | -1/Command | All MAIN.C guards destroyed 38874 | -1/Command | First assault squad dispatched 38876 | -1/Command | Found Prototype Device 38876 | -1/Command | Identified AEGIS Remote Shield 38921 | -1/Command | Met MAIN.C 38925 | -1/Command | 0b10 Conduit disabled 38945 | -1/Command | MAIN.C's shell transforms into a squad of autonomous robots 38945 | -1/Command | Destroyed MAIN.C Shell 38945 | -1/Command | Spotted M Shell/Def 38945 | -1/Command | Spotted M Shell/Atk 38945 | -1/Command | Spotted M Shell/Def 38945 | -1/Command | Spotted M Shell/Atk 38945 | -1/Command | Spotted M Shell/Atk 38945 | -1/Command | Spotted M Shell/Def 38945 | -1/Command | Spotted M Shell/Atk 38945 | -1/Command | Spotted M Shell/Def 38947 | -1/Command | MAIN.C activated Command garrisons 38952 | -1/Command | Spotted B-99 Colossus 39004 | -1/Command | Sigix Exoskeleton integrity reduced to 80% 39004 | -1/Command | Destroyed MAIN.C 39011 | -1/Command | Discovered new exit (range 74) 39011 | -1/Command | Discovered new exit (range 171) 39011 | -1/Command | Extracted map data and part IDs from MAIN.C's data core 39773 | -1/Command | Assembled emerged from beneath the floor 39813 | -1/Command | Assembled emerged from beneath the floor 39856 | -1/Command | Assembled emerged from beneath the floor 39880 | -1/Command | Assembled emerged from beneath the floor 39897 | -1/Command | Assembled emerged from beneath the floor 39979 | -1/Command | Assembled emerged from beneath the floor 40197 | -1/Command | Found Zero-point Reactor 40200 | -1/Command | Found Perforator 40219 | -1/Command | Used Core Regenerator, restored core integrity (+305) 40230 | -1/Command | Warped through subspace to slip node 40230 | -1/Command | Discovered new exit (range 5) 40240 | -1/Command | Entered Access_0 40241 | -1/Access_0 | Sensed 3 artifacts in vicinity 40242 | -1/Access_0 | Met Architect 40255 | -1/Access_0 | Destroyed A8 40297 | -1/Access_0 | Architect warped through subspace 40331 | -1/Access_0 | A6 warped into view 40338 | -1/Access_0 | Destroyed A6 40378 | -1/Access_0 | Architect warped through subspace 40411 | -1/Access_0 | A5 warped into view 40425 | -1/Access_0 | Destroyed A5 40472 | -1/Access_0 | Architect warped through subspace 40511 | -1/Access_0 | Architect warped through subspace 40531 | -1/Access_0 | Destroyed A2 40534 | -1/Access_0 | Extracted Singularity Gate Test 138-C access codes from A2's data core 40547 | -1/Access_0 | Singularity Gate disabled 40579 | -1/Access_0 | Destroyed Architect 40581 | -1/Access_0 | Extracted unknown sensor trigger ID from Architect's data core 40704 | -1/Access_0 | Warped through subspace to slip node 40704 | -1/Access_0 | Discovered new exit (range 8) 40713 | *** | Heading to fleet! Last Messages --------------- 40663_ Destroyed Neutron Cannon. 40663_ HV Slug penetrates Enhanced Grunt. 40663_ Enhanced Grunt suffers critical hit (Destroy). 40663_ Enhanced Grunt destroyed. 40663_ HV Slug penetrates Wall. 40665_ Wall collapses. 40670_ Acquired 84 matter. 40673_ Acquired 82 matter. 40675_ Acquired 78 matter. 40699_ The protective shell folds into the floor. 40704_ Connecting with Architect Logs... >>Record! "Log L.PLVSNE0F" Revision 17 was sadly unable to win control of lower Research, meaning the best hope is that Warlord can pick up the slack, taking advantage of the resulting chaos to control lower 0b10. 40704_ Warped through subspace, drawn to slip node. 40704_ EXIT=FOUND 40706_ Dropped Perforator. 40710_ Acquired Perforator. [Achievement: True Cogmind] Map ----- +----------------------------------------------------+ | | | | | | | | | | | | | | | | | | | | | | | | | | | | | | | | | ???????????#############################?????????? | | ???????????#############################?????????? | | ??????????###############################????????? | | ?????????#################################???????? | | ?????????#################################???????? | | ?????????#################################???????? | | ????????###################################??????? | | ????????################# #################??????? | | ????????################ ################??????? | | ???????################# X ################??????? | | ???????################# ################??????? | | ???????################ #################?????? | | ???????################ #################??????? | | ???????################# ################??????? | | ??????################# ################??????? | | ???????################ #################??????? | | ??????################# < ################??????? | | ???????################ ################???????? | | ???????################# ################???????? | | ???????###################################???????? | | ???????###################################???????? | | ???????###################################???????? | | ????????#################################????????? | | ????????#################################????????? | | ????????#################################????????? | | ?????????###############################?????????? | | ??????????#############################??????????? | | ??????????#############################??????????? | | ???????????###########################???????????? | | ????????????#########################????????????? | | ?????????????#######################?????????????? | | ???????????????###################???????????????? | | ????????????????#################????????????????? | | ???????????????????###########???????????????????? | +----------------------------------------------------+ Best States ------------- Heat Dissipation 132 Coolant Potential 200 Energy Generation 69 Energy Capacity 1050 Matter Stores 340 Matter Capacity 450 Sight Range 21 Robot Scan Range 18 Terrain Scan Range 24 Terrain Scan Density 85 Jamming Range 12 Base Temperature (-) 200 Armor Coverage 800 Resistance: KI 50 Resistance: TH 50 Resistance: EX 50 Resistance: EM 75 Resistance: I 50 Resistance: S 50 Resistance: P 50 Weapon Shielding 90 Point Defense Rating 240 Weapon Cycling 25 Phase Shifting 20 Evasion (%) 101 Targeting Accuracy 12 Core Analysis 8 Recoil Reduction 5 Kinecelleration 40 Offensive Hacking 14 Defensive Hacking 10 Authchip Count 5 Trap Extractor Capacity 4 Item Schematics ----------------- Exp. Hacking Suite | -3/Section 7 | Archive Cld. Antimatter Reactor | -3/Section 7 | Archive Robot Schematics ------------------ None Fabricated ------------ Enh. Nova Cannon | x2 | -5/Factory | Preloaded Machine Rigger | x1 | -4/Factory | Authchip Repaired ---------- Hvy. Shield Leg | 31% | -3/Research Centrium Medium Armor Plating | 44% | -3/Research Imp. Heavy Treads | 43% | -3/Research | Broken Studied --------- None Alien Tech Used ----------------- Sigix Broadsword Core Cannon Core Reset Matrix Core Stripper Integrity Redistributor Core Membrane Integrated Thermoelectric Network Integrated Mediator Integrated Dissipator LRC Armor Subatomic Replicator LRC Storage Sigix Exoskeleton Sigix Sheargun Core Regenerator Transdimensional Reconstructor Achievements -------------- Alien Attack Better Safe Than Exploded Blink Of An Eye Hornet's Nest I, Locutus Integration Complete Inventory Pressure Sacrificial Teamwork True Cogmind Challenges ------------ None Game ------ Seed DeuteriumFrostGuard Manual? 0 Play Time 19:39:12 Cumulative 729.2 hours Start 2026.02.10 @ 11:44:42 End 2026.02.21 @ 23:12:00 Sessions 23 Manual Loads 0 Difficulty Rogue Special Mode None Game No. 68 Rogue 65 Adventurer 3 Explorer 0 Win Type 2 Total 25 Types 9/2/6/2/1/1/1/1/1/1 Lore% 86 Gallery% 86 Achievement% 83 Wizard Run 0 Options --------- Layout 0 ASCII 0 Keyboard 0 Movement Numpad Keybinds 0 Fullscreen 1 Font 18/SmallcapsGlow Map View 76x50 Zoom Use 0% Tactical HUD 1 Map Filters NONE Filters NONE Steam 1 RUN: dc64380d-0212-4d3c-bd6f-0233fe1d65f1